Workbook

Sheet Tabeller (hidden)
A1: =2019 -> 2019 | C1: 0 | E1: -0.05
A2: =A1+1 -> 2020 | C2: =C1+0.01 -> 0.01 | E2: =E1+0.01 -> -0.04
A3: =A2+1 -> 2021 | C3: 0.02 | E3: =E2+0.01 -> -0.03
A4: 2022 | C4: 0.03 | E4: -0.02
A5: 2023 | C5: 0.04 | E5: -0.01
A6: 2024 | C6: 0.05 | E6: 0
A7: 2025 | C7: 0.06 | E7: 0.01
A8: 2026 | C8: 0.07 | E8: 0.02
A9: 2027 | C9: 0.08 | E9: 0.03
A10: 2028 | C10: 0.09 | E10: 0.04
A11: 2029 | C11: 0.1 | E11: =E10+0.01 -> 0.05
A12: 2030
A13: 2031
A14: 2032
A15: 2033
A16: 2034
A17: 2035
A18: 2036
A19: 2037
A20: 2038

Sheet Uppdragsforskning (hidden)
B1: UPPDRAGSFORSKNING - FULL KOSTNADSTÄCKNINGSKALKYL
U3: Instruktioner Generellt Med knappen under rubriken väljs typ av mall, uppdrag / bidragskalkylmall. Det går alltid att hoppa mellan olika mallar utan att förlora inmatade uppgifter. De vita cellerna i mallen fylls i med värden och de färgade cellerna är beräkningar som filen gör automatiskt. Namn / beskrivningar som är ifyllda exempel bör raderas. Grupperingarna / plusknapparna (1, 2 och 3) ute till vänster i filen gör det möjligt att komprimera och expandera kostnads- / intäktsdetaljerna. Grupperingen / plusknappen längst upp (ovanför R kolumnen) ger utökade antal år. Vid behov kan ytterligare rader och även kolumner (för år) infogas, men då med viss försiktighet då formler inte följer med automatiskt. Vid behov av ytterligare rader är rekommenderat att kopiera en hel rad i mitten av de kostnader / intäkter där behov av ytterligare poster uppstår och sedan infoga hela den kopierade raden på samma rad. Vid behov av ytterligare år rekommenderas kontakt med EA eller att två seprata mallar nyttjas för uträkning men med olika projekt start år. Omf.% innebär omfattning av heltid Nyttj % innebär nyttjandegrad av resursen i procent Förbr % innebär förbrukningsgrad av resursen i procent
B6: Inledning för uppdrag Denna mall ska enbart nyttjas internt för beräkning av pris för uppdrag inom forskning. Syftet med att uppdragsforskningsverksamheten ska nyttja denna modell är för att prissättningen ska leda till att full kostnadstäckning uppnås. Modellen är också godkänd av Ekonomistyrningsverket (ESV) via samråd som förnyas vartannat år. Samtliga uppdragskalkyler som överskrider 100 000 kr ska skrivas under av prefekt, eller av den till vilken prefekten delegerat beslutsrätten, samt av universitetsdirektören. I dessa fall ska även ett exemplar av kalkylen diarieföras och sparas. Enligt § 3 Avgiftsförordning (1992:191) får Karolinska Institutet (KI) endast ta ut avgifter för varor och/eller tjänster som myndigheten tillhandahåller om det följer av lag eller förordning eller av ett särskilt beslut av regeringen. Enligt regleringsbrevet som är en årlig skrivelse och styrande dokument från riksdagen får KI bedriva uppdragsforskning. Det ekonomiska målet är bestämt i regleringsbrevet till full kostnadstäckning. Full kostnadstäckning innebär enkelt uttryckt att verksamheten varken får generera ett överskott eller underskott över tid. Detta innebär i praktiken att målet för varje enskilt uppdrags resultat bör vara +/-noll vid uppdragets slut eller då samtliga till uppdraget hänförliga kostnader har allokerats (exempelvis; avvecklingskostnader eller avskrivningar kan kostnadsföras även efter åtagandet har fullföljts). Det är även viktigt att denna verksamhet inte bedrivs med underskott, d.v.s. att KI inte skulle få täckning för samtliga kostnader av beställaren. Därav behöver man uppskatta de förväntade kostnaderna med god eftertanke. Detta får dock heller ej leda till att uppdragsforskningsverksamheten bedrivs med ett överskott som överstiger 10 procent av omsättningen mätt i innevarande års intäkter.
C26: GRUNDLÄGGANDE UPPGIFTER | U26: Grundläggande uppgifter Här väljs institutionskod i rullistan som påverkar de indirekta kostnaderna (INDI) både i denna mall men även värden i specifikations- och uppföljningsflikar. Innevarande år kommer upp automatiskt, men val av projektets start år påverkar Index av personal-, drift-, och lokalkostnader. För uppdrag redogörs även om projektet är internt, statligt, externt eller övrigt uppdrag och där moms av annan anldening ska exkluderas. Resten av fälten är fritextfält, men observera att framförallt projektnumret och även de andra fält hämtas upp av de övriga bladen.
C28: Institutionskod
C29: Innevrande år | D29: =Tabeller!$A$1 -> 2019
C30: Projektets start år
C32: =IF(LEFT(D28,2)="UF","","Internt/Statligt/Externt") -> Internt/Statligt/Externt
C34: Projektledare/-ansvarig
C35: Projektnummer - UBW
C36: Beskrivnig av projektet
C40: ="PROJEKTKOSTNADER"&" - "&LEFT($B$1,(LEN($B$1)-41)) -> PROJEKTKOSTNADER - UPPDRAG | U40: Personalkostnader
U41: Länk till stöd för beräkning av debiterbar månadsersättning
C42: A. Personalkostnader | H42: =IF($D$30="","",IF($D$29>$D$30,"Fel i grundläggande uppgifter",$D$30)) ->  | J42: =IFERROR(H42+1,"") ->  | L42: =IFERROR(J42+1,"") ->  | N42: =IFERROR(L42+1,"") ->  | P42: =IFERROR(N42+1,"") ->  | U42: Beräkningen baserar sig på total månadsersättning och omfattning av heltid i projektet. För bidragsforksning nyttjas bruttolön och standardtiden anges automatiskt, vilket motsvarar 1680 timmar per år på KI. För externa uppdrag ska månadsersättning baseras på debiterbar tid. Bruttolönen behöver beräknas om till debiterbar månadsersättning. Detta är högre än bruttolönen då avräkning för indirekt tid eller produktionsbortfall såsom egen- administration, utbildning och utvecklingsarbete görs. Mallen utgår ifrån en standard produktionsbortfall om 480 timmar, men denna kan enkelt justeras genom att ange nya siffror i beräkningsunderlaget längst ner i bladet. (se även länk ovan eller i rubriken för månadsersättning) Index för personalkostnader är satt till 2% ökning per år. LKP LKP (Lönekostnadspålägg) är en kostnad som de flesta arbetsgivare har för den anställda utöver den individuella bruttolönen som den anställda har. Detta är en standardsats som revideras centralt årligen.
H45: =IF($D$30="","",IF($D$29>$D$30,"Se fel i grundläggande uppgifter",$D$30)) ->  | J45: =IFERROR(H45+1,"") ->  | L45: =IFERROR(J45+1,"") ->  | N45: =IFERROR(L45+1,"") ->  | P45: =IFERROR(N45+1,"") -> 
C46: Namn/Roll | D46: Arbetsmoment/Beskrivning | F46: Antal timmar | G46: Debiterbar månadsers. (kr) | H46: Omf. % | I46: =IF($D$29=$D$30,"inkl. index 0%","inkl. index 2%") -> inkl. index 2% | J46: Omf. % | K46: inkl. index 2% | L46: Omf. % | M46: inkl. index 2% | N46: Omf. % | O46: inkl. index 2% | P46: Omf. % | Q46: inkl. index 2%
D47: Projektledare1 | F47: =IF(H47+J47+L47+N47+P47=0,0,IF($D$32="Internt",(H47+J47+L47+N47+P47)*1680,(H47+J47+L47+N47+P47)*(1680-($D$156*8)))) -> 0 | I47: =IFERROR(IF(OR($D$29="",$D$30=""),"År saknas",(($G47*12)*H47*((1+(MID(I$46,12,2))/100)^(H$45-$D$29)))),0) -> År saknas | K47: =IFERROR(IF(OR($D$29="",$D$30=""),"År saknas",(($G47*12)*J47*((1+(MID(K$46,12,2))/100)^(J$45-$D$29)))),0) -> År saknas | M47: =IFERROR(IF(OR($D$29="",$D$30=""),"År saknas",(($G47*12)*L47*((1+(MID(M$46,12,2))/100)^(L$45-$D$29)))),0) -> År saknas | O47: =IFERROR(IF(OR($D$29="",$D$30=""),"År saknas",(($G47*12)*N47*((1+(MID(O$46,12,2))/100)^(N$45-$D$29)))),0) -> År saknas | Q47: =IFERROR(IF(OR($D$29="",$D$30=""),"År saknas",(($G47*12)*P47*((1+(MID(Q$46,12,2))/100)^(P$45-$D$29)))),0) -> År saknas
F48: 0 | I48: =IFERROR(IF(OR($D$29="",$D$30=""),"År saknas",(($G48*12)*H48*((1+(MID(I$46,12,2))/100)^(H$45-$D$29)))),0) -> År saknas | K48: År saknas | M48: År saknas | O48: År saknas | Q48: År saknas
F49: 0 | I49: År saknas | K49: År saknas | M49: År saknas | O49: År saknas | Q49: År saknas
F50: 0 | I50: År saknas | K50: År saknas | M50: År saknas | O50: År saknas | Q50: År saknas
F51: 0 | I51: År saknas | K51: År saknas | M51: År saknas | O51: År saknas | Q51: År saknas
F52: 0 | I52: År saknas | K52: År saknas | M52: År saknas | O52: År saknas | Q52: År saknas
F53: 0 | I53: År saknas | K53: År saknas | M53: År saknas | O53: År saknas | Q53: År saknas
F54: 0 | I54: År saknas | K54: År saknas | M54: År saknas | O54: År saknas | Q54: År saknas
F55: 0 | I55: År saknas | K55: År saknas | M55: År saknas | O55: År saknas | Q55: År saknas
F56: 0 | I56: År saknas | K56: År saknas | M56: År saknas | O56: År saknas | Q56: År saknas
C58: Summa Personalkostnader exkl. lönekostnadspålägg (LKP) | F58: =SUM(F$47:F56) -> 0 | G58: =SUM(G$47:G56) -> 0 | H58: =SUM(I$47:I56) -> 0 | J58: =SUM(K$47:K56) -> 0 | L58: =SUM(M$47:M56) -> 0 | N58: =SUM(O$47:O56) -> 0 | P58: =SUM(Q$47:Q56) -> 0
C60: Sociala avgifter (LKP) - 2019 | G60: 0.5216
C61: Semestertillägg | G61: 0.0184
F62: LKP Total | G62: =SUM(G60:G61) -> 0.54
C64: Summa personalkostnad där lönekostnadspålägg (LKP) ingår | H64: =H58*(1+$G62) -> 0 | J64: =J58*(1+$G62) -> 0 | L64: =L58*(1+$G62) -> 0 | N64: =N58*(1+$G62) -> 0 | P64: =P58*(1+$G62) -> 0
C66: B. Driftkostnader
C67: B.1 Direkta driftkostnader (Lokal- och KI-interna kostnader kommer under övriga drifkostnader) | U67: Drifkostnader Hit förs alla typer av driftkostnader som är direkt förknippade med projektet. Detta kan innefatta för projektet nödvändig litteratur, kemikalier, laboratorieutrustning, konsultkostnader, resor (inkl. brutto av eventuella skattepliktiga traktamenten). Beloppet anges som en total kostnad för projektet på respektive rad sedan anges förbrukning av resursen för respektive år som procent, 100% motsvarar alltså hela kostnaden för det året.
H68: =IF($D$30="","",IF($D$29>$D$30,"Se fel i grundläggande uppgifter",$D$30)) ->  | J68: =IFERROR(H68+1,"") ->  | L68: =IFERROR(J68+1,"") ->  | N68: =IFERROR(L68+1,"") ->  | P68: =IFERROR(N68+1,"") -> 
C69: Driftkostnader - beskrivning | G69: Kostnad att fördela -> | H69: Förbr. % | I69: =IF($D$29=$D$30,"inkl. index 0%","inkl. index 1%") -> inkl. index 1% | J69: Förbr. % | K69: inkl. index 1,0% | L69: Förbr. % | M69: inkl. index 1,0% | N69: Förbr. % | O69: inkl. index 1,0% | P69: Förbr. % | Q69: inkl. index 1,0%
C70: Instrument | I70: =IF(OR($D$29="",$D$30=""),"År saknas",(($G70)*H70)*((1+(MID(I$69,12,2))/100)^(H$68-$D$29))) -> År saknas | K70: =IF(OR($D$29="",$D$30=""),"År saknas",(($G70)*J70)*((1+(MID(K$69,12,2))/100)^(J$68-$D$29))) -> År saknas | M70: =IF(OR($D$29="",$D$30=""),"År saknas",(($G70)*L70)*((1+(MID(M$69,12,2))/100)^(L$68-$D$29))) -> År saknas | O70: =IF(OR($D$29="",$D$30=""),"År saknas",(($G70)*N70)*((1+(MID(O$69,12,2))/100)^(N$68-$D$29))) -> År saknas | Q70: =IF(OR($D$29="",$D$30=""),"År saknas",(($G70)*P70)*((1+(MID(Q$69,12,2))/100)^(P$68-$D$29))) -> År saknas
C71: Konsulttid | I71: År saknas | K71: År saknas | M71: År saknas | O71: År saknas | Q71: År saknas
C72: Litteratur | I72: År saknas | K72: År saknas | M72: År saknas | O72: År saknas | Q72: År saknas
C73: Djur | I73: År saknas | K73: År saknas | M73: År saknas | O73: År saknas | Q73: År saknas
C74: Resor | I74: År saknas | K74: År saknas | M74: År saknas | O74: År saknas | Q74: År saknas
I75: År saknas | K75: År saknas | M75: År saknas | O75: År saknas | Q75: År saknas
I76: År saknas | K76: År saknas | M76: År saknas | O76: År saknas | Q76: År saknas
I77: År saknas | K77: År saknas | M77: År saknas | O77: År saknas | Q77: År saknas
C79: Summa Direkta driftkostnader | H79: =SUM(I$70:I77) -> 0 | J79: =SUM(K$70:K77) -> 0 | L79: =SUM(M$70:M77) -> 0 | N79: =SUM(O$70:O77) -> 0 | P79: =SUM(Q$70:Q77) -> 0
C81: B.2 Övriga driftkostnader (dessa exkluderas från INDI) | U81: Övriga driftkostnader Avskrivningar, Lokalkostnader och interna kostnader genererar ingen INDI i den mån kalkylen inkluderar detta. Anläggningar Ange den kvarvarande ekonomiska livslängden och investeringskostnaden (nettofakturabelopp) eller restvärde vid befintliga anläggningar. Nyttjandegrad kan uppskattas eller beräknas genom att ta den totala tiden som anläggningen kommer nyttjas respektive år med den totala möjliga nyttjandetiden för anläggningen per år. Lokalkostnader Hit förs alla kostnader för de lokaler som nyttjas samt eventuella kostnader för städning och gemensamma ytor. Uppgifter om ytor och kostnd erhålls oftast från institutionens administration. Interna kostnader Hit förs interna kostnader som uppstår av produkter eller tjänster som tillhandahålls från andra delar av KI, vilket ska inkludera motpartens indirekta kostnader (INDI)
H83: =IF($D$30="","",IF($D$29>$D$30,"Se fel i grundläggande uppgifter",$D$30)) ->  | J83: =IFERROR(H83+1,"") ->  | L83: =IFERROR(J83+1,"") ->  | N83: =IFERROR(L83+1,"") ->  | P83: =IFERROR(N83+1,"") -> 
C84: Anläggning - beskrivning | F84: Eko. livslängd | G84: Investeringskostnad | H84: Nyttj. % | I84: =IF($D$29=$D$30,"inkl. index 0%","inkl. index 0%") -> inkl. index 0% | J84: Nyttj. % | K84: inkl. index 0% | L84: Nyttj. % | M84: inkl. index 0% | N84: Nyttj. % | O84: inkl. index 0% | P84: Nyttj. % | Q84: inkl. index 0%
I85: =IFERROR(IF((H$83-$D$30)>=((IF(LEN($F85)=4,LEFT($F85,1),LEFT($F85,2)))*1),"*livslängd < proj-tid",(($G85/(IF(LEN($F85)=4,LEFT($F85,1),LEFT($F85,2))))*H85)*((1+(MID(I$84,12,2))/100)^(H$83-$D$29))),0) -> 0 | K85: =IFERROR(IF((J$83-$D$30)>=((IF(LEN($F85)=4,LEFT($F85,1),LEFT($F85,2)))*1),"*livslängd < proj-tid",(($G85/(IF(LEN($F85)=4,LEFT($F85,1),LEFT($F85,2))))*J85)*((1+(MID(K$84,12,2))/100)^(J$83-$D$29))),0) -> 0 | M85: =IFERROR(IF((L$83-$D$30)>=((IF(LEN($F85)=4,LEFT($F85,1),LEFT($F85,2)))*1),"*livslängd < proj-tid",(($G85/(IF(LEN($F85)=4,LEFT($F85,1),LEFT($F85,2))))*L85)*((1+(MID(M$84,12,2))/100)^(L$83-$D$29))),0) -> 0 | O85: =IFERROR(IF((N$83-$D$30)>=((IF(LEN($F85)=4,LEFT($F85,1),LEFT($F85,2)))*1),"*livslängd < proj-tid",(($G85/(IF(LEN($F85)=4,LEFT($F85,1),LEFT($F85,2))))*N85)*((1+(MID(O$84,12,2))/100)^(N$83-$D$29))),0) -> 0 | Q85: =IFERROR(IF((P$83-$D$30)>=((IF(LEN($F85)=4,LEFT($F85,1),LEFT($F85,2)))*1),"*livslängd < proj-tid",(($G85/(IF(LEN($F85)=4,LEFT($F85,1),LEFT($F85,2))))*P85)*((1+(MID(Q$84,12,2))/100)^(P$83-$D$29))),0) -> 0
I86: =IFERROR(IF((H$83-$D$30)>=((IF(LEN($F86)=4,LEFT($F86,1),LEFT($F86,2)))*1),"*livslängd < proj-tid",(($G86/(IF(LEN($F86)=4,LEFT($F86,1),LEFT($F86,2))))*H86)*((1+(MID(I$84,12,2))/100)^(H$83-$D$29))),0) -> 0 | K86: =IFERROR(IF((J$83-$D$30)>=((IF(LEN($F86)=4,LEFT($F86,1),LEFT($F86,2)))*1),"*livslängd < proj-tid",(($G86/(IF(LEN($F86)=4,LEFT($F86,1),LEFT($F86,2))))*J86)*((1+(MID(K$84,12,2))/100)^(J$83-$D$29))),0) -> 0 | M86: =IFERROR(IF((L$83-$D$30)>=((IF(LEN($F86)=4,LEFT($F86,1),LEFT($F86,2)))*1),"*livslängd < proj-tid",(($G86/(IF(LEN($F86)=4,LEFT($F86,1),LEFT($F86,2))))*L86)*((1+(MID(M$84,12,2))/100)^(L$83-$D$29))),0) -> 0 | O86: =IFERROR(IF((N$83-$D$30)>=((IF(LEN($F86)=4,LEFT($F86,1),LEFT($F86,2)))*1),"*livslängd < proj-tid",(($G86/(IF(LEN($F86)=4,LEFT($F86,1),LEFT($F86,2))))*N86)*((1+(MID(O$84,12,2))/100)^(N$83-$D$29))),0) -> 0 | Q86: =IFERROR(IF((P$83-$D$30)>=((IF(LEN($F86)=4,LEFT($F86,1),LEFT($F86,2)))*1),"*livslängd < proj-tid",(($G86/(IF(LEN($F86)=4,LEFT($F86,1),LEFT($F86,2))))*P86)*((1+(MID(Q$84,12,2))/100)^(P$83-$D$29))),0) -> 0
H88: =IF($D$30="","",IF($D$29>$D$30,"Se fel i grundläggande uppgifter",$D$30)) ->  | J88: =IFERROR(H88+1,"") ->  | L88: =IFERROR(J88+1,"") ->  | N88: =IFERROR(L88+1,"") ->  | P88: =IFERROR(N88+1,"") -> 
C89: Lokalkostnader - beskrivning | F89: Lokal yta kvm | G89: Kvm kostnad / år | H89: Nyttj. % | I89: =IF($D$29=$D$30,"inkl. index 0%","inkl. index 1%") -> inkl. index 1% | J89: Nyttj. % | K89: inkl. index 1% | L89: Nyttj. % | M89: inkl. index 1% | N89: Nyttj. % | O89: inkl. index 1% | P89: Nyttj. % | Q89: inkl. index 1%
C90: Kontor1 | I90: =IF(OR($D$29="",$D$30=""),"År saknas",(($F90*$G90)*H90)*((1+(MID(I$89,12,2))/100)^(H$88-$D$29))) -> År saknas | K90: =IF(OR($D$29="",$D$30=""),"År saknas",(($F90*$G90)*J90)*((1+(MID(K$89,12,2))/100)^(J$88-$D$29))) -> År saknas | M90: =IF(OR($D$29="",$D$30=""),"År saknas",(($F90*$G90)*L90)*((1+(MID(M$89,12,2))/100)^(L$88-$D$29))) -> År saknas | O90: =IF(OR($D$29="",$D$30=""),"År saknas",(($F90*$G90)*N90)*((1+(MID(O$89,12,2))/100)^(N$88-$D$29))) -> År saknas | Q90: =IF(OR($D$29="",$D$30=""),"År saknas",(($F90*$G90)*P90)*((1+(MID(Q$89,12,2))/100)^(P$88-$D$29))) -> År saknas
C91: Lab1 | I91: =IF(OR($D$29="",$D$30=""),"År saknas",(($F91*$G91)*H91)*((1+(MID(I$89,12,2))/100)^(H$88-$D$29))) -> År saknas | K91: =IF(OR($D$29="",$D$30=""),"År saknas",(($F91*$G91)*J91)*((1+(MID(K$89,12,2))/100)^(J$88-$D$29))) -> År saknas | M91: =IF(OR($D$29="",$D$30=""),"År saknas",(($F91*$G91)*L91)*((1+(MID(M$89,12,2))/100)^(L$88-$D$29))) -> År saknas | O91: =IF(OR($D$29="",$D$30=""),"År saknas",(($F91*$G91)*N91)*((1+(MID(O$89,12,2))/100)^(N$88-$D$29))) -> År saknas | Q91: =IF(OR($D$29="",$D$30=""),"År saknas",(($F91*$G91)*P91)*((1+(MID(Q$89,12,2))/100)^(P$88-$D$29))) -> År saknas
I92: =IF(OR($D$29="",$D$30=""),"År saknas",(($F92*$G92)*H92)*((1+(MID(I$89,12,2))/100)^(H$88-$D$29))) -> År saknas | K92: =IF(OR($D$29="",$D$30=""),"År saknas",(($F92*$G92)*J92)*((1+(MID(K$89,12,2))/100)^(J$88-$D$29))) -> År saknas | M92: =IF(OR($D$29="",$D$30=""),"År saknas",(($F92*$G92)*L92)*((1+(MID(M$89,12,2))/100)^(L$88-$D$29))) -> År saknas | O92: =IF(OR($D$29="",$D$30=""),"År saknas",(($F92*$G92)*N92)*((1+(MID(O$89,12,2))/100)^(N$88-$D$29))) -> År saknas | Q92: =IF(OR($D$29="",$D$30=""),"År saknas",(($F92*$G92)*P92)*((1+(MID(Q$89,12,2))/100)^(P$88-$D$29))) -> År saknas
H94: =IF($D$30="","",IF($D$29>$D$30,"Se fel i grundläggande uppgifter",$D$30)) ->  | J94: =IFERROR(H94+1,"") ->  | L94: =IFERROR(J94+1,"") ->  | N94: =IFERROR(L94+1,"") ->  | P94: =IFERROR(N94+1,"") -> 
C95: Interna kostnader och eventuell INDI-befriad verksamhet - beskrivning | G95: Kostnad att fördela -> | H95: Förbr. % | I95: =IF($D$29=$D$30,"inkl. index 0%","inkl. index 0%") -> inkl. index 0% | J95: Förbr. % | K95: inkl. index 0% | L95: Förbr. % | M95: inkl. index 0% | N95: Förbr. % | O95: inkl. index 0% | P95: Förbr. % | Q95: inkl. index 0%
C96: Interntjänst1, inkl. motpartens INDI | I96: =IF(OR($D$29="",$D$30=""),"År saknas",(($G96)*H96)*((1+(MID(I$95,12,2))/100)^(H$94-$D$29))) -> År saknas | K96: =IF(OR($D$29="",$D$30=""),"År saknas",(($G96)*J96)*((1+(MID(K$95,12,2))/100)^(J$94-$D$29))) -> År saknas | M96: =IF(OR($D$29="",$D$30=""),"År saknas",(($G96)*L96)*((1+(MID(M$95,12,2))/100)^(L$94-$D$29))) -> År saknas | O96: =IF(OR($D$29="",$D$30=""),"År saknas",(($G96)*N96)*((1+(MID(O$95,12,2))/100)^(N$94-$D$29))) -> År saknas | Q96: =IF(OR($D$29="",$D$30=""),"År saknas",(($G96)*P96)*((1+(MID(Q$95,12,2))/100)^(P$94-$D$29))) -> År saknas
C97: IT avgift 9900 kr per anställd/anknuten och år (2017) | I97: =IF(OR($D$29="",$D$30=""),"År saknas",(($G97)*H97)*((1+(MID(I$95,12,2))/100)^(H$94-$D$29))) -> År saknas | K97: =IF(OR($D$29="",$D$30=""),"År saknas",(($G97)*J97)*((1+(MID(K$95,12,2))/100)^(J$94-$D$29))) -> År saknas | M97: =IF(OR($D$29="",$D$30=""),"År saknas",(($G97)*L97)*((1+(MID(M$95,12,2))/100)^(L$94-$D$29))) -> År saknas | O97: =IF(OR($D$29="",$D$30=""),"År saknas",(($G97)*N97)*((1+(MID(O$95,12,2))/100)^(N$94-$D$29))) -> År saknas | Q97: =IF(OR($D$29="",$D$30=""),"År saknas",(($G97)*P97)*((1+(MID(Q$95,12,2))/100)^(P$94-$D$29))) -> År saknas
I98: =IF(OR($D$29="",$D$30=""),"År saknas",(($G98)*H98)*((1+(MID(I$95,12,2))/100)^(H$94-$D$29))) -> År saknas | K98: =IF(OR($D$29="",$D$30=""),"År saknas",(($G98)*J98)*((1+(MID(K$95,12,2))/100)^(J$94-$D$29))) -> År saknas | M98: =IF(OR($D$29="",$D$30=""),"År saknas",(($G98)*L98)*((1+(MID(M$95,12,2))/100)^(L$94-$D$29))) -> År saknas | O98: =IF(OR($D$29="",$D$30=""),"År saknas",(($G98)*N98)*((1+(MID(O$95,12,2))/100)^(N$94-$D$29))) -> År saknas | Q98: =IF(OR($D$29="",$D$30=""),"År saknas",(($G98)*P98)*((1+(MID(Q$95,12,2))/100)^(P$94-$D$29))) -> År saknas
C100: Summa Övriga kostnader | H100: =SUM(I$85:I86)+SUM(I$96:I98)+SUM(I$90:I92) -> 0 | J100: =SUM(K$85:K86)+SUM(K$96:K98)+SUM(K$90:K92) -> 0 | L100: =SUM(M$85:M86)+SUM(M$96:M98)+SUM(M$90:M92) -> 0 | N100: =SUM(O$85:O86)+SUM(O$96:O98)+SUM(O$90:O92) -> 0 | P100: =SUM(Q$85:Q86)+SUM(Q$96:Q98)+SUM(Q$90:Q92) -> 0
C102: Summa Driftkostnader | H102: =H100+H79 -> 0 | J102: =J100+J79 -> 0 | L102: =L100+L79 -> 0 | N102: =N100+N79 -> 0 | P102: =P100+P79 -> 0
U103: Gemensamma kostnader Indirekta kostnader (INDI) Dessa innefattar oftast universitets- och fakultetsgemensamma kostnader samt institutionsgemensamma kostnader. Här finns även möjlighet att göra ned- eller uppräkning av INDI (kan nyttjas vid flerårigt projekt).
C104: C. Gemensamma kostnader
C106: =IF(LEFT($D$28,2)="UF",$D$28,"Universitetsgem.") -> Universitetsgem. | G106: =IF($D$28="",0,IF(LEFT($D$28,2)="UF",VLOOKUP($C$106,'INDI FO 2018'!$C:$G,5,0),VLOOKUP(LEFT($D$28,2),'INDI FO 2018'!$A:$G,6,0))) -> 0
C107: =IF(LEFT($D$28,2)="UF","","Institutionsgem.") -> Institutionsgem. | G107: =IF($D$28="",0,IF(LEFT($D$28,2)="UF","",VLOOKUP(LEFT($D$28,2),'INDI FO 2018'!$A:$G,4,0))) -> 0
C108: Ned- / Uppräkning av INDI | G108: 0
G109: =SUM(G106:G108) -> 0
C111: Summa Indirekta kostnader | H111: =((H79+H64)*$G109) -> 0 | J111: =((J79+J64)*$G109) -> 0 | L111: =((L79+L64)*$G109) -> 0 | N111: =((N79+N64)*$G109) -> 0 | P111: =((P79+P64)*$G109) -> 0
C113: D. Riskpåslag
U114: Riskpåslag/Säkerhetsmarginal Riskpåslag kan nyttjas när det finns väsentliga osäkerheter kopplade till uppskattning av kostnaderna. Rekommenderat riskpåslag är 3% på uppdrag, dock ska hänsyn tas till historiks utveckling inom verksamheten.
C115: Riskpåslag/Säkerhetsmarginal | G115: 0
C118: SUMMA PROJEKTKOSTNADER | H118: =(H64+H102+H111)*(1+$G115) -> 0 | J118: =(J64+J102+J111)*(1+$G115) -> 0 | L118: =(L64+L102+L111)*(1+$G115) -> 0 | N118: =(N64+N102+N111)*(1+$G115) -> 0 | P118: =(P64+P102+P111)*(1+$G115) -> 0
C121: KOSTNADSSPECIFIKATION | U121: Kostnadsspecifikation Här redogörs de totala förväntade kostnaderna för projektet och som är underlag för prissättning. Summa exklusive moms debiteras internt och från statliga myndigheter samt utlandet i de flesta fall, och summa inklusive moms debiteras övriga organisationer och företag. Välj externt uppdrag i grundläggande uppgifter vid behov av moms och internt, statligt eller övrigt utan moms då moms inte ska debiteras. Underskrifter Om nettoomsättnming överskrider 100 000 kr är godkännande från Universitetsdirektören obligatorisk för uppdrag.
C123: Timkostnad (personalkostnad inklusive indirekta kostnader) | F123: =IFERROR(F58&"h á "&(ROUND(((SUM($H64:Q64)+SUM($H111:Q111))/$F58)*(1+$G115),0)&"kr"),"") ->  | G123: =(ROUND((SUM($H64:Q64)+SUM($H111:Q111)),0)*(1+$G115)) -> 0
C124: Driftkostnad | G124: =ROUND(SUM($H102:Q102),0)*(1+$G115) -> 0
C126: SUMMA KOSTNADER (EXKL MOMS) | G126: =(SUM($H64:Q64)+SUM($H100:Q100)+SUM($H111:Q111)+SUM($H79:Q79))*(1+$G115) -> 0
C128: =IF(G128="","Moms redogörs här vid externa uppdrag","VARAV MOMS") -> VARAV MOMS | G128: =IF(G129="","",G129-G126) -> 0
C129: =IF(G129="","Internt, statligt och oftast utländska uppdrag debiteras exkl moms","SUMMA KOSTNADER (INKL 25% MOMS)") -> SUMMA KOSTNADER (INKL 25% MOMS) | G129: =IF(OR($D$28="UF - Internt",$D$32="Internt",$D$32="Statligt",$D$32="Övr. utan moms",),"",G126*1.25) -> 0
C132: Projektledare/-ansvarig | E132: Kontrollerad av inst.-ekonom / motsvarande | G132: Prefekt / med motsvarande beslutsrätt | J132: Universitetsdirektör
C135: Signatur | E135: Signatur | G135: Signatur | J135: Signatur
C138: Namnförtydligande | E138: Namnförtydligande | G138: Namnförtydligande | J138: Namnförtydligande
U141: Beräkning av debiterbar månadsersättning och tid (exkl. LKP) I den mån det är ett externt uppdrag ska avärkning göras för indirekt tid eller produktionsbortfall såsom egen- administration, utbildning och utvecklingsarbete ske. Det som är individuellt och kan ändras i kalkylen är: - månadslön (här anger individens bruttomånadslön exkl. LKP) - antalet semesterdagar som individen har (ex. 7 veckor är 35 dagar) - övrig betald ledighet i dagar (ex. avtalad friskvårdstimmar eller liknande) I den mån projektet är ett externt uppdrag ska även hänsyn tas till övrig ineffektiv betald arbetstid (produktionsbortfall) som kan vara: - egen administration som inte är förknippad med något projekt - egen utveckling, så som utbildningar och annat - generella resor och arrangemang som är personalhälsofrämjande
C142: BERÄKNING AV DEBITERBAR MÅNADSERSÄTTNING OCH TID (Exkl. LKP)
C144: Ange månadslön (hela kronor):
C146: Arbetstid på årsbas | D146: Dagar | E146: Timmar totalt
C147: 52 veckor x 40 tim (heltid) | D147: 260 | E147: =52*40 -> 2080
C148: - 2 veckor helgdagar avgår | D148: 10 | E148: =2*40 -> 80
C149: Betald tid | D149: =D147-D148 -> 250 | E149: =E147-E148 -> 2000
C150: - betalda semesterdagar | D150: 35 | E150: =D150*8 -> 280
C151: - övrig betald frånvaro | D151: 5 | E151: =D151*8 -> 40
C152: STANDARDTID | D152: =D149-D150-D151 -> 210 | E152: =E149-E150-E151 -> 1680
C153: - egen administration | D153: 10 | E153: =D153*8 -> 80
C154: - egen utveckling etc | D154: 25 | E154: =D154*8 -> 200
C155: - resor, sammankomster | D155: 25 | E155: =D155*8 -> 200
C156: Summa indirekt tid | D156: =SUM(D153:D155) -> 60 | E156: =SUM(E153:E155) -> 480
C157: DEBITERBAR TID (DIREKT TID) | D157: =D152-D156 -> 150 | E157: =E152-E156 -> 1200
C159: =IF(G159=0,"Ange månadslön","Månadsersättning exkl. LKP Interna uppdrag:") -> Ange månadslön | E159: =E144/E157*E157 -> 0 | F159: kr per månad | G159: =ROUND(E144/(E152/12),2) -> 0 | H159: kr/tim
C161: =IF(G161=0,"Ange månadslön","Månadsersättning exkl. LKP Externa uppdrag:") -> Ange månadslön | E161: =E144/E157*E152 -> 0 | F161: kr per månad | G161: =ROUND(E144/(E157/12),2) -> 0 | H161: kr/tim

Sheet Uppföljning uppdrag (hidden)
B1: UPPDRAGSFORSKNING - STÖD FÖR BUDGET TILL UBW
B3: Inledning Denna flik summerar kostnader och intäkter som fyllts in i kalkylfliken och återvisar dem i en budget modell som kan enkelt föras in i UBWs Saldo tabell för uppföljningsändamål. Posterna hämtas till olika konton beroende på vad som fyllts i under respektive rubrik i kalkylen. Det är möjligt att välja antingen att föra in totala förväntad utfall på första året, det under första rubriken nedan, eller en årsfördelad from första året och framåt som finns under rubriken årsfördelad budget. OBS! Kopiera endast gråa fält och klistra in direkt i UBW (Ctrl + C & Ctrl + V). Se gärna UBW handbok på medarbetarportalen för ytterligare instruktioner om hur funktionen nyttjas.
C11: TOTAL BUDGET
C13: RR2 | D13: Beskrivning | E13: Konto | F13: Inst | G13: Proj | H13: Fin | I13: Anl | J13: Mpt | K13: Verks | L13: Text | M13: Per | N13: Budget (BB)
C14: 11 | D14: Intäkter avgifter | E14: 33 | F14: =IF(Uppdragsforskning!$D$28="","",LEFT(Uppdragsforskning!$D$28,2)) ->  | G14: =Uppdragsforskning!$D$35 -> 0 | L14: ="Budget totalt "&Uppdragsforskning!$D$35&"" -> Budget totalt | M14: =Bidragsforskning!$D$30&"00" -> 00 | N14: =N25+N32+N39+N46+N53 -> 0
C15: 21 | D15: Personalkostnader | E15: 40 | F15: =IF(Uppdragsforskning!$D$28="","",LEFT(Uppdragsforskning!$D$28,2)) ->  | G15: =Uppdragsforskning!$D$35 -> 0 | L15: ="Budget totalt "&Uppdragsforskning!$D$35&"" -> Budget totalt | M15: =Bidragsforskning!$D$30&"00" -> 00 | N15: =N26+N33+N40+N47+N54 -> 0
C16: 211 | D16: Gemensamma kostnader (INDI) | E16: 499 | F16: =IF(Uppdragsforskning!$D$28="","",LEFT(Uppdragsforskning!$D$28,2)) ->  | G16: =Uppdragsforskning!$D$35 -> 0 | L16: ="Budget totalt "&Uppdragsforskning!$D$35&"" -> Budget totalt | M16: =Bidragsforskning!$D$30&"00" -> 00 | N16: 0
C17: 22 | D17: Lokalkostnader | E17: 50 | F17: =IF(Uppdragsforskning!$D$28="","",LEFT(Uppdragsforskning!$D$28,2)) ->  | G17: =Uppdragsforskning!$D$35 -> 0 | L17: ="Budget totalt "&Uppdragsforskning!$D$35&"" -> Budget totalt | M17: =Bidragsforskning!$D$30&"00" -> 00 | N17: 0
C18: 23 | D18: Övriga driftskostnader | E18: 52 | F18: =IF(Uppdragsforskning!$D$28="","",LEFT(Uppdragsforskning!$D$28,2)) ->  | G18: =Uppdragsforskning!$D$35 -> 0 | L18: ="Budget totalt "&Uppdragsforskning!$D$35&"" -> Budget totalt | M18: =Bidragsforskning!$D$30&"00" -> 00 | N18: 0
C19: 23 | D19: Interna kostnader | E19: 579 | F19: =IF(Uppdragsforskning!$D$28="","",LEFT(Uppdragsforskning!$D$28,2)) ->  | G19: =Uppdragsforskning!$D$35 -> 0 | L19: ="Budget totalt "&Uppdragsforskning!$D$35&"" -> Budget totalt | M19: =Bidragsforskning!$D$30&"00" -> 00 | N19: 0
C20: 24 | D20: Avskrivningar | E20: 69 | F20: =IF(Uppdragsforskning!$D$28="","",LEFT(Uppdragsforskning!$D$28,2)) ->  | G20: =Uppdragsforskning!$D$35 -> 0 | L20: ="Budget totalt "&Uppdragsforskning!$D$35&"" -> Budget totalt | M20: =Bidragsforskning!$D$30&"00" -> 00 | N20: 0
C22: ÅRSFÖRDELAD BUDGET
C24: RR2 | D24: Beskrivning | E24: Konto | F24: Inst | G24: Proj | H24: Fin | I24: Anl | J24: Mpt | K24: Verks | L24: Text | M24: Per | N24: Budget (BB)
C25: 11 | D25: Intäkter av avgifter | E25: 33 | F25: =IF(Uppdragsforskning!$D$28="","",LEFT(Uppdragsforskning!$D$28,2)) ->  | G25: =Uppdragsforskning!$D$35 -> 0 | L25: ="Budget "&Uppdragsforskning!$D$35&" "&Uppdragsforskning!H$42 -> Budget | M25: =RIGHT(L25,4)&"00" -> et 00 | N25: =SUM(Uppdragsforskning!H118:I118)*-1 -> 0
C26: 21 | D26: Personalkostnader | E26: 40 | F26: =IF(Uppdragsforskning!$D$28="","",LEFT(Uppdragsforskning!$D$28,2)) ->  | G26: =Uppdragsforskning!$D$35 -> 0 | L26: ="Budget "&Uppdragsforskning!$D$35&" "&Uppdragsforskning!H$42 -> Budget | M26: =RIGHT(L26,4)&"00" -> et 00 | N26: =SUM(Uppdragsforskning!H64:I64) -> 0
C27: 211 | D27: Gemensamma kostnader (INDI) | E27: 499 | F27: =IF(Uppdragsforskning!$D$28="","",LEFT(Uppdragsforskning!$D$28,2)) ->  | G27: =Uppdragsforskning!$D$35 -> 0 | L27: ="Budget "&Uppdragsforskning!$D$35&" "&Uppdragsforskning!H$42 -> Budget | M27: et 00 | N27: =SUM(Uppdragsforskning!H111:I111) -> 0
C28: 22 | D28: Lokalkostnader | E28: 50 | F28: =IF(Uppdragsforskning!$D$28="","",LEFT(Uppdragsforskning!$D$28,2)) ->  | G28: =Uppdragsforskning!$D$35 -> 0 | L28: ="Budget "&Uppdragsforskning!$D$35&" "&Uppdragsforskning!H$42 -> Budget | M28: et 00 | N28: =SUM(Uppdragsforskning!I$90:I92) -> 0
C29: 23 | D29: Övriga driftskostnader | E29: 52 | F29: =IF(Uppdragsforskning!$D$28="","",LEFT(Uppdragsforskning!$D$28,2)) ->  | G29: =Uppdragsforskning!$D$35 -> 0 | L29: ="Budget "&Uppdragsforskning!$D$35&" "&Uppdragsforskning!H$42 -> Budget | M29: et 00 | N29: =SUM(Uppdragsforskning!H79:I79) -> 0
C30: 23 | D30: Interna kostnader | E30: 579 | F30: =IF(Uppdragsforskning!$D$28="","",LEFT(Uppdragsforskning!$D$28,2)) ->  | G30: =Uppdragsforskning!$D$35 -> 0 | L30: ="Budget "&Uppdragsforskning!$D$35&" "&Uppdragsforskning!H$42 -> Budget | M30: et 00 | N30: =SUM(Uppdragsforskning!I$96:I98) -> 0
C31: 24 | D31: Avskrivningar | E31: 69 | F31: =IF(Uppdragsforskning!$D$28="","",LEFT(Uppdragsforskning!$D$28,2)) ->  | G31: =Uppdragsforskning!$D$35 -> 0 | L31: ="Budget "&Uppdragsforskning!$D$35&" "&Uppdragsforskning!H$42 -> Budget | M31: et 00 | N31: =SUM(Uppdragsforskning!I$85:I86) -> 0
C32: 11 | D32: Intäkter av avgifter | E32: 33 | F32: =IF(Uppdragsforskning!$D$28="","",LEFT(Uppdragsforskning!$D$28,2)) ->  | G32: =Uppdragsforskning!$D$35 -> 0 | L32: ="Budget "&Uppdragsforskning!$D$35&" "&Uppdragsforskning!J$42 -> Budget | M32: et 00 | N32: =SUM(Uppdragsforskning!J118:K118)*-1 -> 0
C33: 21 | D33: Personalkostnader | E33: 40 | F33: =IF(Uppdragsforskning!$D$28="","",LEFT(Uppdragsforskning!$D$28,2)) ->  | G33: =Uppdragsforskning!$D$35 -> 0 | L33: ="Budget "&Uppdragsforskning!$D$35&" "&Uppdragsforskning!J$42 -> Budget | M33: et 00 | N33: =SUM(Uppdragsforskning!J64:K64) -> 0
C34: 211 | D34: Gemensamma kostnader (INDI) | E34: 499 | F34: =IF(Uppdragsforskning!$D$28="","",LEFT(Uppdragsforskning!$D$28,2)) ->  | G34: =Uppdragsforskning!$D$35 -> 0 | L34: ="Budget "&Uppdragsforskning!$D$35&" "&Uppdragsforskning!J$42 -> Budget | M34: et 00 | N34: =SUM(Uppdragsforskning!J111:K111) -> 0
C35: 22 | D35: Lokalkostnader | E35: 50 | F35: =IF(Uppdragsforskning!$D$28="","",LEFT(Uppdragsforskning!$D$28,2)) ->  | G35: =Uppdragsforskning!$D$35 -> 0 | L35: ="Budget "&Uppdragsforskning!$D$35&" "&Uppdragsforskning!J$42 -> Budget | M35: et 00 | N35: =SUM(Uppdragsforskning!K$90:K92) -> 0
C36: 23 | D36: Övriga driftskostnader | E36: 52 | F36: =IF(Uppdragsforskning!$D$28="","",LEFT(Uppdragsforskning!$D$28,2)) ->  | G36: =Uppdragsforskning!$D$35 -> 0 | L36: ="Budget "&Uppdragsforskning!$D$35&" "&Uppdragsforskning!J$42 -> Budget | M36: et 00 | N36: =SUM(Uppdragsforskning!J79:K79) -> 0
C37: 23 | D37: Interna kostnader | E37: 579 | F37: =IF(Uppdragsforskning!$D$28="","",LEFT(Uppdragsforskning!$D$28,2)) ->  | G37: =Uppdragsforskning!$D$35 -> 0 | L37: ="Budget "&Uppdragsforskning!$D$35&" "&Uppdragsforskning!J$42 -> Budget | M37: et 00 | N37: =SUM(Uppdragsforskning!K$96:K98) -> 0
C38: 24 | D38: Avskrivningar | E38: 69 | F38: =IF(Uppdragsforskning!$D$28="","",LEFT(Uppdragsforskning!$D$28,2)) ->  | G38: =Uppdragsforskning!$D$35 -> 0 | L38: ="Budget "&Uppdragsforskning!$D$35&" "&Uppdragsforskning!J$42 -> Budget | M38: et 00 | N38: =SUM(Uppdragsforskning!K$85:K86) -> 0
C39: 11 | D39: Intäkter av avgifter | E39: 33 | F39: =IF(Uppdragsforskning!$D$28="","",LEFT(Uppdragsforskning!$D$28,2)) ->  | G39: =Uppdragsforskning!$D$35 -> 0 | L39: ="Budget "&Uppdragsforskning!$D$35&" "&Uppdragsforskning!L$42 -> Budget | M39: et 00 | N39: =SUM(Uppdragsforskning!L118:M118)*-1 -> 0
C40: 21 | D40: Personalkostnader | E40: 40 | F40: =IF(Uppdragsforskning!$D$28="","",LEFT(Uppdragsforskning!$D$28,2)) ->  | G40: =Uppdragsforskning!$D$35 -> 0 | L40: ="Budget "&Uppdragsforskning!$D$35&" "&Uppdragsforskning!L$42 -> Budget | M40: et 00 | N40: =SUM(Uppdragsforskning!L64:M64) -> 0
C41: 211 | D41: Gemensamma kostnader (INDI) | E41: 499 | F41: =IF(Uppdragsforskning!$D$28="","",LEFT(Uppdragsforskning!$D$28,2)) ->  | G41: =Uppdragsforskning!$D$35 -> 0 | L41: ="Budget "&Uppdragsforskning!$D$35&" "&Uppdragsforskning!L$42 -> Budget | M41: et 00 | N41: =SUM(Uppdragsforskning!L111:M111) -> 0
C42: 22 | D42: Lokalkostnader | E42: 50 | F42: =IF(Uppdragsforskning!$D$28="","",LEFT(Uppdragsforskning!$D$28,2)) ->  | G42: =Uppdragsforskning!$D$35 -> 0 | L42: ="Budget "&Uppdragsforskning!$D$35&" "&Uppdragsforskning!L$42 -> Budget | M42: et 00 | N42: =SUM(Uppdragsforskning!M$90:M92) -> 0
C43: 23 | D43: Övriga driftskostnader | E43: 52 | F43: =IF(Uppdragsforskning!$D$28="","",LEFT(Uppdragsforskning!$D$28,2)) ->  | G43: =Uppdragsforskning!$D$35 -> 0 | L43: ="Budget "&Uppdragsforskning!$D$35&" "&Uppdragsforskning!L$42 -> Budget | M43: et 00 | N43: =SUM(Uppdragsforskning!L79:M79) -> 0
C44: 23 | D44: Interna kostnader | E44: 579 | F44: =IF(Uppdragsforskning!$D$28="","",LEFT(Uppdragsforskning!$D$28,2)) ->  | G44: =Uppdragsforskning!$D$35 -> 0 | L44: ="Budget "&Uppdragsforskning!$D$35&" "&Uppdragsforskning!L$42 -> Budget | M44: et 00 | N44: =SUM(Uppdragsforskning!M$96:M98) -> 0
C45: 24 | D45: Avskrivningar | E45: 69 | F45: =IF(Uppdragsforskning!$D$28="","",LEFT(Uppdragsforskning!$D$28,2)) ->  | G45: =Uppdragsforskning!$D$35 -> 0 | L45: ="Budget "&Uppdragsforskning!$D$35&" "&Uppdragsforskning!L$42 -> Budget | M45: et 00 | N45: =SUM(Uppdragsforskning!M$85:M86) -> 0
C46: 11 | D46: Intäkter av avgifter | E46: 33 | F46: =IF(Uppdragsforskning!$D$28="","",LEFT(Uppdragsforskning!$D$28,2)) ->  | G46: =Uppdragsforskning!$D$35 -> 0 | L46: ="Budget "&Uppdragsforskning!$D$35&" "&Uppdragsforskning!N$42 -> Budget | M46: et 00 | N46: =SUM(Uppdragsforskning!N118:O118)*-1 -> 0
C47: 21 | D47: Personalkostnader | E47: 40 | F47: =IF(Uppdragsforskning!$D$28="","",LEFT(Uppdragsforskning!$D$28,2)) ->  | G47: =Uppdragsforskning!$D$35 -> 0 | L47: ="Budget "&Uppdragsforskning!$D$35&" "&Uppdragsforskning!N$42 -> Budget | M47: et 00 | N47: =SUM(Uppdragsforskning!N64:O64) -> 0
C48: 211 | D48: Gemensamma kostnader (INDI) | E48: 499 | F48: =IF(Uppdragsforskning!$D$28="","",LEFT(Uppdragsforskning!$D$28,2)) ->  | G48: =Uppdragsforskning!$D$35 -> 0 | L48: ="Budget "&Uppdragsforskning!$D$35&" "&Uppdragsforskning!N$42 -> Budget | M48: et 00 | N48: =SUM(Uppdragsforskning!N111:O111) -> 0
C49: 22 | D49: Lokalkostnader | E49: 50 | F49: =IF(Uppdragsforskning!$D$28="","",LEFT(Uppdragsforskning!$D$28,2)) ->  | G49: =Uppdragsforskning!$D$35 -> 0 | L49: ="Budget "&Uppdragsforskning!$D$35&" "&Uppdragsforskning!N$42 -> Budget | M49: et 00 | N49: =SUM(Uppdragsforskning!O$90:O92) -> 0
C50: 23 | D50: Övriga driftskostnader | E50: 52 | F50: =IF(Uppdragsforskning!$D$28="","",LEFT(Uppdragsforskning!$D$28,2)) ->  | G50: =Uppdragsforskning!$D$35 -> 0 | L50: ="Budget "&Uppdragsforskning!$D$35&" "&Uppdragsforskning!N$42 -> Budget | M50: et 00 | N50: =SUM(Uppdragsforskning!N79:O79) -> 0
C51: 23 | D51: Interna kostnader | E51: 579 | F51: =IF(Uppdragsforskning!$D$28="","",LEFT(Uppdragsforskning!$D$28,2)) ->  | G51: =Uppdragsforskning!$D$35 -> 0 | L51: ="Budget "&Uppdragsforskning!$D$35&" "&Uppdragsforskning!N$42 -> Budget | M51: et 00 | N51: =SUM(Uppdragsforskning!O$96:O98) -> 0
C52: 24 | D52: Avskrivningar | E52: 69 | F52: =IF(Uppdragsforskning!$D$28="","",LEFT(Uppdragsforskning!$D$28,2)) ->  | G52: =Uppdragsforskning!$D$35 -> 0 | L52: ="Budget "&Uppdragsforskning!$D$35&" "&Uppdragsforskning!N$42 -> Budget | M52: et 00 | N52: =SUM(Uppdragsforskning!O$85:O86) -> 0
C53: 11 | D53: Intäkter av avgifter | E53: 33 | F53: =IF(Uppdragsforskning!$D$28="","",LEFT(Uppdragsforskning!$D$28,2)) ->  | G53: =Uppdragsforskning!$D$35 -> 0 | L53: ="Budget "&Uppdragsforskning!$D$35&" "&Uppdragsforskning!P$42 -> Budget | M53: et 00 | N53: =SUM(Uppdragsforskning!P118:Q118)*-1 -> 0
C54: 21 | D54: Personalkostnader | E54: 40 | F54: =IF(Uppdragsforskning!$D$28="","",LEFT(Uppdragsforskning!$D$28,2)) ->  | G54: =Uppdragsforskning!$D$35 -> 0 | L54: ="Budget "&Uppdragsforskning!$D$35&" "&Uppdragsforskning!P$42 -> Budget | M54: et 00 | N54: =SUM(Uppdragsforskning!P64:Q64) -> 0
C55: 211 | D55: Gemensamma kostnader (INDI) | E55: 499 | F55: =IF(Uppdragsforskning!$D$28="","",LEFT(Uppdragsforskning!$D$28,2)) ->  | G55: =Uppdragsforskning!$D$35 -> 0 | L55: ="Budget "&Uppdragsforskning!$D$35&" "&Uppdragsforskning!P$42 -> Budget | M55: et 00 | N55: =SUM(Uppdragsforskning!P111:Q111) -> 0
C56: 22 | D56: Lokalkostnader | E56: 50 | F56: =IF(Uppdragsforskning!$D$28="","",LEFT(Uppdragsforskning!$D$28,2)) ->  | G56: =Uppdragsforskning!$D$35 -> 0 | L56: ="Budget "&Uppdragsforskning!$D$35&" "&Uppdragsforskning!P$42 -> Budget | M56: et 00 | N56: =SUM(Uppdragsforskning!Q$90:Q92) -> 0
C57: 23 | D57: Övriga driftskostnader | E57: 52 | F57: =IF(Uppdragsforskning!$D$28="","",LEFT(Uppdragsforskning!$D$28,2)) ->  | G57: =Uppdragsforskning!$D$35 -> 0 | L57: ="Budget "&Uppdragsforskning!$D$35&" "&Uppdragsforskning!P$42 -> Budget | M57: et 00 | N57: =SUM(Uppdragsforskning!P79:Q79) -> 0
C58: 23 | D58: Interna kostnader | E58: 579 | F58: =IF(Uppdragsforskning!$D$28="","",LEFT(Uppdragsforskning!$D$28,2)) ->  | G58: =Uppdragsforskning!$D$35 -> 0 | L58: ="Budget "&Uppdragsforskning!$D$35&" "&Uppdragsforskning!P$42 -> Budget | M58: et 00 | N58: =SUM(Uppdragsforskning!Q$96:Q98) -> 0
C59: 24 | D59: Avskrivningar | E59: 69 | F59: =IF(Uppdragsforskning!$D$28="","",LEFT(Uppdragsforskning!$D$28,2)) ->  | G59: =Uppdragsforskning!$D$35 -> 0 | L59: ="Budget "&Uppdragsforskning!$D$35&" "&Uppdragsforskning!P$42 -> Budget | M59: et 00 | N59: =SUM(Uppdragsforskning!Q$85:Q86) -> 0

Sheet Bidragsforskning
B1: BIDRAGSFORSKNING - FULL KOSTNADSTÄCKNINGSKALKYL
U3: Instruktioner Generellt Med knappen under rubriken väljs typ av mall, uppdrag / bidragskalkylmall. Det går alltid att hoppa mellan olika mallar utan att förlora inmatade uppgifter. De vita cellerna i mallen fylls i med värden och de färgade cellerna är beräkningar som filen gör automatiskt. Namn / beskrivningar som är ifyllda exempel bör raderas. Grupperingarna / plusknapparna (1, 2 och 3) ute till vänster i filen gör det möjligt att komprimera och expandera kostnads- / intäktsdetaljerna. Grupperingen / plusknappen längst upp (ovanför R kolumnen) ger utökade antal år. Vid behov kan ytterligare rader och även kolumner (för år) infogas, men då med viss försiktighet då formler inte följer med automatiskt. Vid behov av ytterligare rader är rekommenderat att kopiera en hel rad i mitten av de kostnader / intäkter där behov av ytterligare poster uppstår och sedan infoga hela den kopierade raden på samma rad. Vid behov av ytterligare år rekommenderas kontakt med EA eller att två seprata mallar nyttjas för uträkning men med olika projekt start år. Omf.% innebär omfattning av heltid Nyttj % innebär nyttjandegrad av resursen i procent Förbr % innebär förbrukningsgrad av resursen i procent
B6: Inledning för bidrag Med bidrag menas medel som tas emot utan krav på motprestation i form av till exempel varor, tjänster eller särskilda förmåner. Finansiären kan dock villkora vad bidraget får användas till och dessutom ställa krav på återrapportering av hur medlen nyttjats. Denna mall är ämnad för att stötta beräkning av ett forskningsprojekts kostnader samt finansiering och därmed även det eventuella samfinansieringsbehovet som kan uppstå. Med samfinansieringsbehov i detta sammanhang menas den del av kostnader som uppstår i projektet som inte har beviljats täckning från huvudfinansiärerna. Till skillnad från uppdragsforskningskalkylmallen kan denna mall med fördel även användas som underlag att bifoga en ansökan där bidragsgivaren så kräver. Detta kan ske då de inte själva tillhandahåller någon specifik mall. Mallen i sig kan skrivas ut i komprimerad form genom grupperingsfunktionen till vänster i bladet. Mallen ska alltid skrivas under av prefekt, eller av den till vilken prefekten delegerat beslutsrätten, när det ansökta bidraget överstiger 100 000 kr. I dessa fall ska ett exemplar av ansökan och kalkylen diarieföras och sparas. Vid beviljade ansökningar ska kalkylen bifogas i Avtalsreskontran i KIs affärssystem.
U25: Grundläggande uppgifter Här väljs institutionskod i rullistan som påverkar de indirekta kostnaderna (INDI) både i denna mall men även värden i specifikations- och uppföljningsflikar. Innevarande år kommer upp automatiskt, men val av projektets start år påverkar Index av personal-, drift-, och lokalkostnader. För uppdrag redogörs även om projektet är internt, statligt, externt eller övrigt uppdrag och där moms av annan anldening ska exkluderas. Resten av fälten är fritextfält, men observera att framförallt projektnumret och även de andra fält hämtas upp av de övriga bladen.
C26: GRUNDLÄGGANDE UPPGIFTER
C28: Institutionskod | D28: C4 - Neuro
C29: Innevrande år | D29: =Tabeller!$A$1 -> 2019
C30: Projektets start år
C31: Projektledare/-ansvarig
C32: Projektnummer - UBW
C33: Beskrivnig av projektet
C37: ="PROJEKTKOSTNADER"&" - "&LEFT($B$1,(LEN($B$1)-41)) -> PROJEKTKOSTNADER - BIDRAG
C39: A. Personalkostnader | H39: =IF($D$30="","",IF($D$29>$D$30,"Fel i grundläggande uppgifter",$D$30)) ->  | J39: =IFERROR(H39+1,"") ->  | L39: =IFERROR(J39+1,"") ->  | N39: =IFERROR(L39+1,"") ->  | P39: =IFERROR(N39+1,"") -> 
C40: A.1 Medverkande personal med LÖN från KI
C42: A.1.1 - Projektledare
H43: =IF($D$30="","",IF($D$29>$D$30,"Fel i grunduppgifter",$D$30)) ->  | J43: =IFERROR(H43+1,"") ->  | L43: =IFERROR(J43+1,"") ->  | N43: =IFERROR(L43+1,"") ->  | P43: =IFERROR(N43+1,"") ->  | U43: Personalkostnader
C44: Namn/Roll | D44: Arbetsmoment/Beskrivning | F44: Antal timmar | G44: Månadslön (kr) | H44: Omf. % | I44: =IF($D$29=$D$30,"inkl. index 0%","inkl. index 2%") -> inkl. index 2% | J44: Omf. % | K44: inkl. index 2% | L44: Omf. % | M44: inkl. index 2% | N44: Omf. % | O44: inkl. index 2% | P44: Omf. % | Q44: inkl. index 2%
C45: Professor1 | F45: =(H45+J45+L45+N45+P45)*1680 -> 0 | I45: =IFERROR(IF(OR($D$29="",$D$30=""),"År saknas",(($G45*12)*H45*((1+(MID(I$44,12,2))/100)^(H$43-$D$29)))),0) -> År saknas | K45: =IFERROR(IF(OR($D$29="",$D$30=""),"År saknas",(($G45*12)*J45*((1+(MID(K$44,12,2))/100)^(J$43-$D$29)))),0) -> År saknas | M45: =IFERROR(IF(OR($D$29="",$D$30=""),"År saknas",(($G45*12)*L45*((1+(MID(M$44,12,2))/100)^(L$43-$D$29)))),0) -> År saknas | O45: =IFERROR(IF(OR($D$29="",$D$30=""),"År saknas",(($G45*12)*N45*((1+(MID(O$44,12,2))/100)^(N$43-$D$29)))),0) -> År saknas | Q45: =IFERROR(IF(OR($D$29="",$D$30=""),"År saknas",(($G45*12)*P45*((1+(MID(Q$44,12,2))/100)^(P$43-$D$29)))),0) -> År saknas | U45: Beräkningen baserar sig på total månadsersättning och omfattning av heltid i projektet. För bidragsforksning nyttjas bruttolön och standardtiden anges automatiskt, vilket motsvarar 1680 timmar per år på KI. För externa uppdrag ska månadsersättning baseras på debiterbar tid. Bruttolönen behöver beräknas om till debiterbar månadsersättning. Detta är högre än bruttolönen då avräkning för indirekt tid eller produktionsbortfall såsom egen- administration, utbildning och utvecklingsarbete görs. Mallen utgår ifrån en standard produktionsbortfall om 480 timmar, men denna kan enkelt justeras genom att ange nya siffror i beräkningsunderlaget längst ner i bladet. (se även länk ovan eller i rubriken för månadsersättning) Index för personalkostnader är satt till 2% ökning per år.
F46: =(H46+J46+L46+N46+P46)*1680 -> 0 | I46: =IFERROR(IF(OR($D$29="",$D$30=""),"År saknas",(($G46*12)*H46*((1+(MID(I$44,12,2))/100)^(H$43-$D$29)))),0) -> År saknas | K46: =IFERROR(IF(OR($D$29="",$D$30=""),"År saknas",(($G46*12)*J46*((1+(MID(K$44,12,2))/100)^(J$43-$D$29)))),0) -> År saknas | M46: =IFERROR(IF(OR($D$29="",$D$30=""),"År saknas",(($G46*12)*L46*((1+(MID(M$44,12,2))/100)^(L$43-$D$29)))),0) -> År saknas | O46: =IFERROR(IF(OR($D$29="",$D$30=""),"År saknas",(($G46*12)*N46*((1+(MID(O$44,12,2))/100)^(N$43-$D$29)))),0) -> År saknas | Q46: =IFERROR(IF(OR($D$29="",$D$30=""),"År saknas",(($G46*12)*P46*((1+(MID(Q$44,12,2))/100)^(P$43-$D$29)))),0) -> År saknas
F47: 0 | I47: =IFERROR(IF(OR($D$29="",$D$30=""),"År saknas",(($G47*12)*H47*((1+(MID(I$44,12,2))/100)^(H$43-$D$29)))),0) -> År saknas | K47: =IFERROR(IF(OR($D$29="",$D$30=""),"År saknas",(($G47*12)*J47*((1+(MID(K$44,12,2))/100)^(J$43-$D$29)))),0) -> År saknas | M47: =IFERROR(IF(OR($D$29="",$D$30=""),"År saknas",(($G47*12)*L47*((1+(MID(M$44,12,2))/100)^(L$43-$D$29)))),0) -> År saknas | O47: =IFERROR(IF(OR($D$29="",$D$30=""),"År saknas",(($G47*12)*N47*((1+(MID(O$44,12,2))/100)^(N$43-$D$29)))),0) -> År saknas | Q47: =IFERROR(IF(OR($D$29="",$D$30=""),"År saknas",(($G47*12)*P47*((1+(MID(Q$44,12,2))/100)^(P$43-$D$29)))),0) -> År saknas
F48: 0 | I48: =IFERROR(IF(OR($D$29="",$D$30=""),"År saknas",(($G48*12)*H48*((1+(MID(I$44,12,2))/100)^(H$43-$D$29)))),0) -> År saknas | K48: =IFERROR(IF(OR($D$29="",$D$30=""),"År saknas",(($G48*12)*J48*((1+(MID(K$44,12,2))/100)^(J$43-$D$29)))),0) -> År saknas | M48: =IFERROR(IF(OR($D$29="",$D$30=""),"År saknas",(($G48*12)*L48*((1+(MID(M$44,12,2))/100)^(L$43-$D$29)))),0) -> År saknas | O48: =IFERROR(IF(OR($D$29="",$D$30=""),"År saknas",(($G48*12)*N48*((1+(MID(O$44,12,2))/100)^(N$43-$D$29)))),0) -> År saknas | Q48: =IFERROR(IF(OR($D$29="",$D$30=""),"År saknas",(($G48*12)*P48*((1+(MID(Q$44,12,2))/100)^(P$43-$D$29)))),0) -> År saknas
C50: A.1.2 - Doktorander
H51: =IF($D$30="","",IF($D$29>$D$30,"Fel i grunduppgifter",$D$30)) ->  | J51: =IFERROR(H51+1,"") ->  | L51: =IFERROR(J51+1,"") ->  | N51: =IFERROR(L51+1,"") ->  | P51: =IFERROR(N51+1,"") -> 
C52: Namn/Roll | D52: Arbetsmoment/Beskrivning | F52: Antal timmar | G52: Månadslön (kr) | H52: Omf. % | I52: =IF($D$29=$D$30,"inkl. index 0%","inkl. index 2%") -> inkl. index 2% | J52: Omf. % | K52: inkl. index 2% | L52: Omf. % | M52: inkl. index 2% | N52: Omf. % | O52: inkl. index 2% | P52: Omf. % | Q52: inkl. index 2%
C53: Doktorand1 | F53: =(H53+J53+L53+N53+P53)*1680 -> 0 | I53: =IFERROR(IF(OR($D$29="",$D$30=""),"År saknas",(($G53*12)*H53*((1+(MID(I$52,12,2))/100)^(H$51-$D$29)))),0) -> År saknas | K53: =IFERROR(IF(OR($D$29="",$D$30=""),"År saknas",(($G53*12)*J53*((1+(MID(K$52,12,2))/100)^(J$51-$D$29)))),0) -> År saknas | M53: =IFERROR(IF(OR($D$29="",$D$30=""),"År saknas",(($G53*12)*L53*((1+(MID(M$52,12,2))/100)^(L$51-$D$29)))),0) -> År saknas | O53: =IFERROR(IF(OR($D$29="",$D$30=""),"År saknas",(($G53*12)*N53*((1+(MID(O$52,12,2))/100)^(N$51-$D$29)))),0) -> År saknas | Q53: =IFERROR(IF(OR($D$29="",$D$30=""),"År saknas",(($G53*12)*P53*((1+(MID(Q$52,12,2))/100)^(P$51-$D$29)))),0) -> År saknas
F54: 0 | I54: =IFERROR(IF(OR($D$29="",$D$30=""),"År saknas",(($G54*12)*H54*((1+(MID(I$52,12,2))/100)^(H$51-$D$29)))),0) -> År saknas | K54: =IFERROR(IF(OR($D$29="",$D$30=""),"År saknas",(($G54*12)*J54*((1+(MID(K$52,12,2))/100)^(J$51-$D$29)))),0) -> År saknas | M54: =IFERROR(IF(OR($D$29="",$D$30=""),"År saknas",(($G54*12)*L54*((1+(MID(M$52,12,2))/100)^(L$51-$D$29)))),0) -> År saknas | O54: =IFERROR(IF(OR($D$29="",$D$30=""),"År saknas",(($G54*12)*N54*((1+(MID(O$52,12,2))/100)^(N$51-$D$29)))),0) -> År saknas | Q54: =IFERROR(IF(OR($D$29="",$D$30=""),"År saknas",(($G54*12)*P54*((1+(MID(Q$52,12,2))/100)^(P$51-$D$29)))),0) -> År saknas
C56: A.1.3 - Övrig forskande personal
H57: =IF($D$30="","",IF($D$29>$D$30,"Fel i grunduppgifter",$D$30)) ->  | J57: =IFERROR(H57+1,"") ->  | L57: =IFERROR(J57+1,"") ->  | N57: =IFERROR(L57+1,"") ->  | P57: =IFERROR(N57+1,"") -> 
C58: Namn/Roll | D58: Arbetsmoment/Beskrivning | F58: Antal timmar | G58: Månadslön (kr) | H58: Omf. % | I58: =IF($D$29=$D$30,"inkl. index 0%","inkl. index 2%") -> inkl. index 2% | J58: Omf. % | K58: inkl. index 2% | L58: Omf. % | M58: inkl. index 2% | N58: Omf. % | O58: inkl. index 2% | P58: Omf. % | Q58: inkl. index 2%
C59: Forskningsassistent1 | F59: =(H59+J59+L59+N59+P59)*1680 -> 0 | I59: =IFERROR(IF(OR($D$29="",$D$30=""),"År saknas",(($G59*12)*H59*((1+(MID(I$58,12,2))/100)^(H$57-$D$29)))),0) -> År saknas | K59: =IFERROR(IF(OR($D$29="",$D$30=""),"År saknas",(($G59*12)*J59*((1+(MID(K$58,12,2))/100)^(J$57-$D$29)))),0) -> År saknas | M59: =IFERROR(IF(OR($D$29="",$D$30=""),"År saknas",(($G59*12)*L59*((1+(MID(M$58,12,2))/100)^(L$57-$D$29)))),0) -> År saknas | O59: =IFERROR(IF(OR($D$29="",$D$30=""),"År saknas",(($G59*12)*N59*((1+(MID(O$58,12,2))/100)^(N$57-$D$29)))),0) -> År saknas | Q59: =IFERROR(IF(OR($D$29="",$D$30=""),"År saknas",(($G59*12)*P59*((1+(MID(Q$58,12,2))/100)^(P$57-$D$29)))),0) -> År saknas
F60: 0 | I60: =IFERROR(IF(OR($D$29="",$D$30=""),"År saknas",(($G60*12)*H60*((1+(MID(I$58,12,2))/100)^(H$57-$D$29)))),0) -> År saknas | K60: =IFERROR(IF(OR($D$29="",$D$30=""),"År saknas",(($G60*12)*J60*((1+(MID(K$58,12,2))/100)^(J$57-$D$29)))),0) -> År saknas | M60: =IFERROR(IF(OR($D$29="",$D$30=""),"År saknas",(($G60*12)*L60*((1+(MID(M$58,12,2))/100)^(L$57-$D$29)))),0) -> År saknas | O60: =IFERROR(IF(OR($D$29="",$D$30=""),"År saknas",(($G60*12)*N60*((1+(MID(O$58,12,2))/100)^(N$57-$D$29)))),0) -> År saknas | Q60: =IFERROR(IF(OR($D$29="",$D$30=""),"År saknas",(($G60*12)*P60*((1+(MID(Q$58,12,2))/100)^(P$57-$D$29)))),0) -> År saknas
C62: A.1.4 - TA-personal som ej ingår i det gemensamma stödet
H63: =IF($D$30="","",IF($D$29>$D$30,"Fel i grunduppgifter",$D$30)) ->  | J63: =IFERROR(H63+1,"") ->  | L63: =IFERROR(J63+1,"") ->  | N63: =IFERROR(L63+1,"") ->  | P63: =IFERROR(N63+1,"") -> 
C64: Namn/Roll | D64: Arbetsmoment/Beskrivning | F64: Antal timmar | G64: Månadslön (kr) | H64: Omf. % | I64: =IF($D$29=$D$30,"inkl. index 0%","inkl. index 2%") -> inkl. index 2% | J64: Omf. % | K64: inkl. index 2% | L64: Omf. % | M64: inkl. index 2% | N64: Omf. % | O64: inkl. index 2% | P64: Omf. % | Q64: inkl. index 2%
C65: Administratör1 | F65: =(H65+J65+L65+N65+P65)*1680 -> 0 | I65: =IFERROR(IF(OR($D$29="",$D$30=""),"År saknas",(($G65*12)*H65*((1+(MID(I$64,12,2))/100)^(H$63-$D$29)))),0) -> År saknas | K65: =IFERROR(IF(OR($D$29="",$D$30=""),"År saknas",(($G65*12)*J65*((1+(MID(K$64,12,2))/100)^(J$63-$D$29)))),0) -> År saknas | M65: =IFERROR(IF(OR($D$29="",$D$30=""),"År saknas",(($G65*12)*L65*((1+(MID(M$64,12,2))/100)^(L$63-$D$29)))),0) -> År saknas | O65: =IFERROR(IF(OR($D$29="",$D$30=""),"År saknas",(($G65*12)*N65*((1+(MID(O$64,12,2))/100)^(N$63-$D$29)))),0) -> År saknas | Q65: =IFERROR(IF(OR($D$29="",$D$30=""),"År saknas",(($G65*12)*P65*((1+(MID(Q$64,12,2))/100)^(P$63-$D$29)))),0) -> År saknas
F66: 0 | I66: =IFERROR(IF(OR($D$29="",$D$30=""),"År saknas",(($G66*12)*H66*((1+(MID(I$64,12,2))/100)^(H$63-$D$29)))),0) -> År saknas | K66: =IFERROR(IF(OR($D$29="",$D$30=""),"År saknas",(($G66*12)*J66*((1+(MID(K$64,12,2))/100)^(J$63-$D$29)))),0) -> År saknas | M66: =IFERROR(IF(OR($D$29="",$D$30=""),"År saknas",(($G66*12)*L66*((1+(MID(M$64,12,2))/100)^(L$63-$D$29)))),0) -> År saknas | O66: =IFERROR(IF(OR($D$29="",$D$30=""),"År saknas",(($G66*12)*N66*((1+(MID(O$64,12,2))/100)^(N$63-$D$29)))),0) -> År saknas | Q66: =IFERROR(IF(OR($D$29="",$D$30=""),"År saknas",(($G66*12)*P66*((1+(MID(Q$64,12,2))/100)^(P$63-$D$29)))),0) -> År saknas
C68: Summa Personalkostnader exkl. lönekostnadspålägg (LKP) | F68: =SUM(F$45:F66) -> 0 | H68: =SUM(I$45:I66) -> 0 | J68: =SUM(K$45:K66) -> 0 | L68: =SUM(M$45:M66) -> 0 | N68: =SUM(O$45:O66) -> 0 | P68: =SUM(Q$45:Q66) -> 0
C70: Sociala avgifter (LKP) - 2019 | G70: 0.5216 | U70: LKP LKP (Lönekostnadspålägg) är en kostnad som de flesta arbetsgivare har för den anställda utöver den individuella bruttolönen som den anställda har. Detta är en standardsats som revideras centralt årligen.
C71: Semestertillägg | G71: 0.0184
F72: LKP Total | G72: =SUM(G70:G71) -> 0.54
C74: Summa personalkostnad där lönekostnadspålägg (LKP) ingår | H74: =SUM(H68)*(1+$G72) -> 0 | J74: =SUM(J68)*(1+$G72) -> 0 | L74: =SUM(L68)*(1+$G72) -> 0 | N74: =SUM(N68)*(1+$G72) -> 0 | P74: =SUM(P68)*(1+$G72) -> 0
C76: A.2 Övriga medverkande som har annan ersättning än lön (dessa exkluderas från LKP)
C77: A.2.1 - Övriga medverkande
H78: =IF($D$30="","",IF($D$29>$D$30,"Fel i grunduppgifter",$D$30)) ->  | J78: =IFERROR(H78+1,"") ->  | L78: =IFERROR(J78+1,"") ->  | N78: =IFERROR(L78+1,"") ->  | P78: =IFERROR(N78+1,"") ->  | U78: Övriga medverkande (exkl. LKP) Detta är främst för stipendiater, men kan även användas för medverkande där LKP inte ska ingå av andra eventuella skäl.
C79: Namn/Roll | D79: Arbetsmoment/Beskrivning | F79: Antal timmar | G79: Månadsers. (kr) | H79: Omf. % | I79: =IF($D$29=$D$30,"inkl. index 0%","inkl. index 0%") -> inkl. index 0% | J79: Omf. % | K79: inkl. index 0% | L79: Omf. % | M79: inkl. index 0% | N79: Omf. % | O79: inkl. index 0% | P79: Omf. % | Q79: inkl. index 0%
C80: Stipendiat 1 | F80: =(H80+J80+L80+N80+P80)*1680 -> 0 | I80: =IFERROR(IF(OR($D$29="",$D$30=""),"År saknas",(($G80*12)*H80*((1+(MID(I$79,12,2))/100)^(H$78-$D$29)))),0) -> År saknas | K80: =IFERROR(IF(OR($D$29="",$D$30=""),"År saknas",(($G80*12)*J80*((1+(MID(K$79,12,2))/100)^(J$78-$D$29)))),0) -> År saknas | M80: =IFERROR(IF(OR($D$29="",$D$30=""),"År saknas",(($G80*12)*L80*((1+(MID(M$79,12,2))/100)^(L$78-$D$29)))),0) -> År saknas | O80: =IFERROR(IF(OR($D$29="",$D$30=""),"År saknas",(($G80*12)*N80*((1+(MID(O$79,12,2))/100)^(N$78-$D$29)))),0) -> År saknas | Q80: =IFERROR(IF(OR($D$29="",$D$30=""),"År saknas",(($G80*12)*P80*((1+(MID(Q$79,12,2))/100)^(P$78-$D$29)))),0) -> År saknas
F81: 0 | I81: =IFERROR(IF(OR($D$29="",$D$30=""),"År saknas",(($G81*12)*H81*((1+(MID(I$79,12,2))/100)^(H$78-$D$29)))),0) -> År saknas | K81: =IFERROR(IF(OR($D$29="",$D$30=""),"År saknas",(($G81*12)*J81*((1+(MID(K$79,12,2))/100)^(J$78-$D$29)))),0) -> År saknas | M81: =IFERROR(IF(OR($D$29="",$D$30=""),"År saknas",(($G81*12)*L81*((1+(MID(M$79,12,2))/100)^(L$78-$D$29)))),0) -> År saknas | O81: =IFERROR(IF(OR($D$29="",$D$30=""),"År saknas",(($G81*12)*N81*((1+(MID(O$79,12,2))/100)^(N$78-$D$29)))),0) -> År saknas | Q81: =IFERROR(IF(OR($D$29="",$D$30=""),"År saknas",(($G81*12)*P81*((1+(MID(Q$79,12,2))/100)^(P$78-$D$29)))),0) -> År saknas
C83: Summa kostnader för övriga medverkande | H83: =SUM(I$80:I81) -> 0 | J83: =SUM(K$80:K81) -> 0 | L83: =SUM(M$80:M81) -> 0 | N83: =SUM(O$80:O81) -> 0 | P83: =SUM(Q$80:Q81) -> 0
C85: Summa samtliga personalkostnader | H85: =H83+H74 -> 0 | J85: =J83+J74 -> 0 | L85: =L83+L74 -> 0 | N85: =N83+N74 -> 0 | P85: =P83+P74 -> 0
C87: B. Driftkostnader
C88: B.1 Direkta driftkostnader (Lokal- och KI-interna kostnader kommer under övriga drifkostnader)
H89: =IF($D$30="","",IF($D$29>$D$30,"Fel i grunduppgifter",$D$30)) ->  | J89: =IFERROR(H89+1,"") ->  | L89: =IFERROR(J89+1,"") ->  | N89: =IFERROR(L89+1,"") ->  | P89: =IFERROR(N89+1,"") ->  | U89: Drifkostnader Hit förs alla typer av driftkostnader som är direkt förknippade med projektet. Detta kan innefatta för projektet nödvändig litteratur, kemikalier, laboratorieutrustning, konsultkostnader, resor (inkl. brutto av eventuella skattepliktiga traktamenten). Beloppet anges som en total kostnad för projektet på respektive rad sedan anges förbrukning av resursen (kostnden) för respektive år som procent. 100% innebär alltså att hela kostnaden tas på det året.
C90: Driftkostnader - beskrivning | G90: Kostnad att fördela -> | H90: Förbr. % | I90: =IF($D$29=$D$30,"inkl. index 0%","inkl. index 1%") -> inkl. index 1% | J90: Förbr. % | K90: inkl. index 1% | L90: Förbr. % | M90: inkl. index 1% | N90: Förbr. % | O90: inkl. index 1% | P90: Förbr. % | Q90: inkl. index 1%
C91: Instrument | I91: =IF(OR($D$29="",$D$30=""),"År saknas",(($G91)*H91)*((1+(MID(I$90,12,2))/100)^(H$89-$D$29))) -> År saknas | K91: =IF(OR($D$29="",$D$30=""),"År saknas",(($G91)*J91)*((1+(MID(K$90,12,2))/100)^(J$89-$D$29))) -> År saknas | M91: =IF(OR($D$29="",$D$30=""),"År saknas",(($G91)*L91)*((1+(MID(M$90,12,2))/100)^(L$89-$D$29))) -> År saknas | O91: =IF(OR($D$29="",$D$30=""),"År saknas",(($G91)*N91)*((1+(MID(O$90,12,2))/100)^(N$89-$D$29))) -> År saknas | Q91: =IF(OR($D$29="",$D$30=""),"År saknas",(($G91)*P91)*((1+(MID(Q$90,12,2))/100)^(P$89-$D$29))) -> År saknas
C92: Konsulttid | I92: År saknas | K92: År saknas | M92: År saknas | O92: År saknas | Q92: År saknas
C93: Litteratur | I93: År saknas | K93: År saknas | M93: År saknas | O93: År saknas | Q93: År saknas
C94: Djur | I94: År saknas | K94: År saknas | M94: År saknas | O94: År saknas | Q94: År saknas
C95: Resor | I95: År saknas | K95: År saknas | M95: År saknas | O95: År saknas | Q95: År saknas
I96: År saknas | K96: År saknas | M96: År saknas | O96: År saknas | Q96: År saknas
I97: År saknas | K97: År saknas | M97: År saknas | O97: År saknas | Q97: År saknas
I98: År saknas | K98: År saknas | M98: År saknas | O98: År saknas | Q98: År saknas
I99: År saknas | K99: År saknas | M99: År saknas | O99: År saknas | Q99: År saknas
C101: Summa direkta driftkostnader | H101: =SUM(I$91:I99) -> 0 | J101: =SUM(K$91:K99) -> 0 | L101: =SUM(M$91:M99) -> 0 | N101: =SUM(O$91:O99) -> 0 | P101: =SUM(Q$91:Q99) -> 0
U102: Övriga driftkostnader Avskrivningar, Lokalkostnader och interna kostnader genererar ingen INDI i den mån kalkylen inkluderar detta.
C103: B.2 Övriga driftkostnader (dessa exkluderas från INDI)
H105: =IF($D$30="","",IF($D$29>$D$30,"Fel i grunduppgifter",$D$30)) ->  | J105: =IFERROR(H105+1,"") ->  | L105: =IFERROR(J105+1,"") ->  | N105: =IFERROR(L105+1,"") ->  | P105: =IFERROR(N105+1,"") -> 
C106: Anläggning - beskrivning | F106: Eko. livslängd | G106: Investeringskostnad | H106: Nyttj. % | I106: =IF($D$29=$D$30,"inkl. index 0%","inkl. index 0%") -> inkl. index 0% | J106: Nyttj. % | K106: inkl. index 0% | L106: Nyttj. % | M106: inkl. index 0% | N106: Nyttj. % | O106: inkl. index 0% | P106: Nyttj. % | Q106: inkl. index 0% | U106: Anläggningar Ange den kvarvarande ekonomiska livslängden och investeringskostnaden (nettofakturabelopp) eller totala restvärdet vid befintliga anläggningar. Nyttjandegrad kan uppskattas eller beräknas genom att ta den totala tiden som anläggningen kommer nyttjas respektive år med den totala möjliga nyttjandetiden för anläggningen per år. Lokalkostnader Hit förs alla kostnader för de lokaler som nyttjas samt eventuella kostnader för städning och gemensamma ytor. Uppgifter om ytor och kostnd erhålls oftast från institutionens administration. Interna kostnader Hit förs interna kostnader som uppstår av produkter eller tjänster som tillhandahålls från andra delar av KI, vilket ska inkludera motpartens indirekta kostnader (INDI)
I107: =IFERROR(IF((H$105-$D$30)>=((IF(LEN($F107)=4,LEFT($F107,1),LEFT($F107,2)))*1),"*livslängd < proj-tid",(($G107/(IF(LEN($F107)=4,LEFT($F107,1),LEFT($F107,2))))*H107)*((1+(MID(I$106,12,2))/100)^(H$105-$D$29))),0) -> 0 | K107: =IFERROR(IF((J$105-$D$30)>=((IF(LEN($F107)=4,LEFT($F107,1),LEFT($F107,2)))*1),"*livslängd < proj-tid",(($G107/(IF(LEN($F107)=4,LEFT($F107,1),LEFT($F107,2))))*J107)*((1+(MID(K$106,12,2))/100)^(J$105-$D$29))),0) -> 0 | M107: =IFERROR(IF((L$105-$D$30)>=((IF(LEN($F107)=4,LEFT($F107,1),LEFT($F107,2)))*1),"*livslängd < proj-tid",(($G107/(IF(LEN($F107)=4,LEFT($F107,1),LEFT($F107,2))))*L107)*((1+(MID(M$106,12,2))/100)^(L$105-$D$29))),0) -> 0 | O107: =IFERROR(IF((N$105-$D$30)>=((IF(LEN($F107)=4,LEFT($F107,1),LEFT($F107,2)))*1),"*livslängd < proj-tid",(($G107/(IF(LEN($F107)=4,LEFT($F107,1),LEFT($F107,2))))*N107)*((1+(MID(O$106,12,2))/100)^(N$105-$D$29))),0) -> 0 | Q107: =IFERROR(IF((P$105-$D$30)>=((IF(LEN($F107)=4,LEFT($F107,1),LEFT($F107,2)))*1),"*livslängd < proj-tid",(($G107/(IF(LEN($F107)=4,LEFT($F107,1),LEFT($F107,2))))*P107)*((1+(MID(Q$106,12,2))/100)^(P$105-$D$29))),0) -> 0
I108: =IFERROR(IF((H$105-$D$30)>=((IF(LEN($F108)=4,LEFT($F108,1),LEFT($F108,2)))*1),"*livslängd < proj-tid",(($G108/(IF(LEN($F108)=4,LEFT($F108,1),LEFT($F108,2))))*H108)*((1+(MID(I$106,12,2))/100)^(H$105-$D$29))),0) -> 0 | K108: =IFERROR(IF((J$105-$D$30)>=((IF(LEN($F108)=4,LEFT($F108,1),LEFT($F108,2)))*1),"*livslängd < proj-tid",(($G108/(IF(LEN($F108)=4,LEFT($F108,1),LEFT($F108,2))))*J108)*((1+(MID(K$106,12,2))/100)^(J$105-$D$29))),0) -> 0 | M108: =IFERROR(IF((L$105-$D$30)>=((IF(LEN($F108)=4,LEFT($F108,1),LEFT($F108,2)))*1),"*livslängd < proj-tid",(($G108/(IF(LEN($F108)=4,LEFT($F108,1),LEFT($F108,2))))*L108)*((1+(MID(M$106,12,2))/100)^(L$105-$D$29))),0) -> 0 | O108: =IFERROR(IF((N$105-$D$30)>=((IF(LEN($F108)=4,LEFT($F108,1),LEFT($F108,2)))*1),"*livslängd < proj-tid",(($G108/(IF(LEN($F108)=4,LEFT($F108,1),LEFT($F108,2))))*N108)*((1+(MID(O$106,12,2))/100)^(N$105-$D$29))),0) -> 0 | Q108: =IFERROR(IF((P$105-$D$30)>=((IF(LEN($F108)=4,LEFT($F108,1),LEFT($F108,2)))*1),"*livslängd < proj-tid",(($G108/(IF(LEN($F108)=4,LEFT($F108,1),LEFT($F108,2))))*P108)*((1+(MID(Q$106,12,2))/100)^(P$105-$D$29))),0) -> 0
H110: =IF($D$30="","",IF($D$29>$D$30,"Fel i grunduppgifter",$D$30)) ->  | J110: =IFERROR(H110+1,"") ->  | L110: =IFERROR(J110+1,"") ->  | N110: =IFERROR(L110+1,"") ->  | P110: =IFERROR(N110+1,"") -> 
C111: Lokalkostnader - beskrivning | F111: Lokal yta kvm | G111: Kvm kostnad / år | H111: Nyttj. % | I111: =IF($D$29=$D$30,"inkl. index 0%","inkl. index 2%") -> inkl. index 2% | J111: Nyttj. % | K111: inkl. index 2% | L111: Nyttj. % | M111: inkl. index 2% | N111: Nyttj. % | O111: inkl. index 2% | P111: Nyttj. % | Q111: inkl. index 2%
C112: Kontor1 | I112: =IF(OR($D$29="",$D$30=""),"År saknas",(($F112*$G112)*H112)*((1+(MID(I$111,12,2))/100)^(H$110-$D$29))) -> År saknas | K112: =IF(OR($D$29="",$D$30=""),"År saknas",(($F112*$G112)*J112)*((1+(MID(K$111,12,2))/100)^(J$110-$D$29))) -> År saknas | M112: =IF(OR($D$29="",$D$30=""),"År saknas",(($F112*$G112)*L112)*((1+(MID(M$111,12,2))/100)^(L$110-$D$29))) -> År saknas | O112: =IF(OR($D$29="",$D$30=""),"År saknas",(($F112*$G112)*N112)*((1+(MID(O$111,12,2))/100)^(N$110-$D$29))) -> År saknas | Q112: =IF(OR($D$29="",$D$30=""),"År saknas",(($F112*$G112)*P112)*((1+(MID(Q$111,12,2))/100)^(P$110-$D$29))) -> År saknas
C113: Lab1 | I113: =IF(OR($D$29="",$D$30=""),"År saknas",(($F113*$G113)*H113)*((1+(MID(I$111,12,2))/100)^(H$110-$D$29))) -> År saknas | K113: =IF(OR($D$29="",$D$30=""),"År saknas",(($F113*$G113)*J113)*((1+(MID(K$111,12,2))/100)^(J$110-$D$29))) -> År saknas | M113: =IF(OR($D$29="",$D$30=""),"År saknas",(($F113*$G113)*L113)*((1+(MID(M$111,12,2))/100)^(L$110-$D$29))) -> År saknas | O113: =IF(OR($D$29="",$D$30=""),"År saknas",(($F113*$G113)*N113)*((1+(MID(O$111,12,2))/100)^(N$110-$D$29))) -> År saknas | Q113: =IF(OR($D$29="",$D$30=""),"År saknas",(($F113*$G113)*P113)*((1+(MID(Q$111,12,2))/100)^(P$110-$D$29))) -> År saknas
I114: =IF(OR($D$29="",$D$30=""),"År saknas",(($F114*$G114)*H114)*((1+(MID(I$111,12,2))/100)^(H$110-$D$29))) -> År saknas | K114: =IF(OR($D$29="",$D$30=""),"År saknas",(($F114*$G114)*J114)*((1+(MID(K$111,12,2))/100)^(J$110-$D$29))) -> År saknas | M114: =IF(OR($D$29="",$D$30=""),"År saknas",(($F114*$G114)*L114)*((1+(MID(M$111,12,2))/100)^(L$110-$D$29))) -> År saknas | O114: =IF(OR($D$29="",$D$30=""),"År saknas",(($F114*$G114)*N114)*((1+(MID(O$111,12,2))/100)^(N$110-$D$29))) -> År saknas | Q114: =IF(OR($D$29="",$D$30=""),"År saknas",(($F114*$G114)*P114)*((1+(MID(Q$111,12,2))/100)^(P$110-$D$29))) -> År saknas
H116: =IF($D$30="","",IF($D$29>$D$30,"Fel i grunduppgifter",$D$30)) ->  | J116: =IFERROR(H116+1,"") ->  | L116: =IFERROR(J116+1,"") ->  | N116: =IFERROR(L116+1,"") ->  | P116: =IFERROR(N116+1,"") -> 
C117: Interna kostnader och eventuell INDI-befriad verksamhet - beskrivning | G117: Kostnad att fördela -> | H117: Förbr. % | I117: =IF($D$29=$D$30,"inkl. index 0%","inkl. index 0%") -> inkl. index 0% | J117: Förbr. % | K117: inkl. index 0% | L117: Förbr. % | M117: inkl. index 0% | N117: Förbr. % | O117: inkl. index 0% | P117: Förbr. % | Q117: inkl. index 0%
C118: Interntjänst1, inkl. motpartens INDI | I118: =IF(OR($D$29="",$D$30=""),"År saknas",(($G118)*H118)*((1+(MID(I$117,12,2))/100)^(H$116-$D$29))) -> År saknas | K118: =IF(OR($D$29="",$D$30=""),"År saknas",(($G118)*J118)*((1+(MID(K$117,12,2))/100)^(J$116-$D$29))) -> År saknas | M118: =IF(OR($D$29="",$D$30=""),"År saknas",(($G118)*L118)*((1+(MID(M$117,12,2))/100)^(L$116-$D$29))) -> År saknas | O118: =IF(OR($D$29="",$D$30=""),"År saknas",(($G118)*N118)*((1+(MID(O$117,12,2))/100)^(N$116-$D$29))) -> År saknas | Q118: =IF(OR($D$29="",$D$30=""),"År saknas",(($G118)*P118)*((1+(MID(Q$117,12,2))/100)^(P$116-$D$29))) -> År saknas
C119: IT avgift 9900 kr per anställd/anknuten och år (2017) | I119: =IF(OR($D$29="",$D$30=""),"År saknas",(($G119)*H119)*((1+(MID(I$117,12,2))/100)^(H$116-$D$29))) -> År saknas | K119: År saknas | M119: År saknas | O119: År saknas | Q119: År saknas
I120: År saknas | K120: År saknas | M120: År saknas | O120: År saknas | Q120: År saknas
C122: Summa Övriga kostnader | H122: =SUM(I$107:I108)+SUM(I$118:I120)+SUM(I$112:I114) -> 0 | J122: =SUM(K$107:K108)+SUM(K$118:K120)+SUM(K$112:K114) -> 0 | L122: =SUM(M$107:M108)+SUM(M$118:M120)+SUM(M$112:M114) -> 0 | N122: =SUM(O$107:O108)+SUM(O$118:O120)+SUM(O$112:O114) -> 0 | P122: =SUM(Q$107:Q108)+SUM(Q$118:Q120)+SUM(Q$112:Q114) -> 0
C124: Summa Driftkostnader | H124: =H122+H101 -> 0 | J124: =J122+J101 -> 0 | L124: =L122+L101 -> 0 | N124: =N122+N101 -> 0 | P124: =P122+P101 -> 0
U125: Gemensamma kostnader Indirekta kostnader (INDI) Dessa innefattar oftast universitets- och fakultetsgemensamma kostnader samt institutionsgemensamma kostnader. Här finns även möjlighet att göra ned- eller uppräkning av INDI (kan nyttjas vid flerårigt projekt).
C126: C. Gemensamma kostnader
C127: =IF(LEFT($D$28,2)="UF",$D$28,"Universitetsgem.") -> Universitetsgem. | G127: =IF($D$28="",0,IF(LEFT($D$28,2)="UF",VLOOKUP($C$127,'INDI FO 2018'!$C:$G,5,0),VLOOKUP(LEFT($D$28,2),'INDI FO 2018'!$A:$G,6,0))) -> 0.146
C128: =IF(LEFT($D$28,2)="UF","","Institutionsgem.") -> Institutionsgem. | G128: =IF($D$28="",0,IF(LEFT($D$28,2)="UF","",VLOOKUP(LEFT($D$28,2),'INDI FO 2018'!$A:$G,4,0))) -> 0.079
C129: Ned- / Uppräkning av INDI | G129: 0
F130: INDI Total | G130: =SUM(G127:G129) -> 0.225
C132: Summa Indirekta kostnader | H132: =(H85+H101)*$G$130 -> 0 | J132: =(J85+J101)*$G$130 -> 0 | L132: =(L85+L101)*$G$130 -> 0 | N132: =(N85+N101)*$G$130 -> 0 | P132: =(P85+P101)*$G$130 -> 0
C135: SUMMA PROJEKTKOSTNADER | H135: =H85+H124+H132 -> 0 | J135: =J85+J124+J132 -> 0 | L135: =L85+L124+L132 -> 0 | N135: =N85+N124+N132 -> 0 | P135: =P85+P124+P132 -> 0
C138: FINANSIERING | U138: Finansiering Här redogörs för finansiering av de förväntade kostnader Huvudfinansiär Här redogörs för den förväntade huvudfinansieringen av projektets kostnader. Detta är oftast en finansiär men kan givetvis innefatta flera finansieringskällor. Huvudfinansiärerna är till majoritet KI-externa organisationer och föreningar. I fritexfält kan vid behov formler nyttjas för beräkning då finansiering baserar sig på regler kopplade till andra kostnadsposter, exempelvis INDI.
C140: A. Huvudfinansiär
C141: Beviljad finansiering | F141: Frivillig rubrik | G141: Frivillig rubrik | H141: =IF($D$30="","",IF($D$29>$D$30,"Fel i grunduppgifter",$D$30)) ->  | J141: =IFERROR(H141+1,"") ->  | L141: =IFERROR(J141+1,"") ->  | N141: =IFERROR(L141+1,"") ->  | P141: =IFERROR(N141+1,"") -> 
C142: Finansiär1
C143: Finansiär2
C146: Summa finansiering | H146: =SUM(H142:I144) -> 0 | J146: =SUM(J142:K144) -> 0 | L146: =SUM(L142:M144) -> 0 | N146: =SUM(N142:O144) -> 0 | P146: =SUM(P142:Q144) -> 0
C148: B. Samfinansiering
C149: Samfinansiering / kapital från projekt | F149: Frivillig rubrik | G149: Frivillig rubrik | H149: =IF($D$30="","",IF($D$29>$D$30,"Fel i grunduppgifter",$D$30)) ->  | J149: =IFERROR(H149+1,"") ->  | L149: =IFERROR(J149+1,"") ->  | N149: =IFERROR(L149+1,"") ->  | P149: =IFERROR(N149+1,"") ->  | U149: Samfinansiering Innan något har förts in här visar totalen eller uträkningen längst ner samfinansieringsbehovet som finns. Dvs totalen av de kostnader som inte täcks av huvudfinansiären / -finansiärerna. Efter behovet av samfinansiering visats kan här redogöras för varifrån och i hur stor omfattning samfinansieringen som kommer, allt eftersom samfinansiering förs in reduseras samfinansieringsbehovet totalt i filen.
C150: Projekt1
C151: Projekt2
C154: Samfinansieringsbehov (finansiering - kostnader + samfinansiering) | H154: =H146-H135+SUM(H150:I151) -> 0 | J154: =J146-J135+SUM(J150:K151) -> 0 | L154: =L146-L135+SUM(L150:M151) -> 0 | N154: =N146-N135+SUM(N150:O151) -> 0 | P154: =P146-P135+SUM(P150:Q151) -> 0
C156: Huvudansökanden | E156: Kontrollerad av inst.-ekonom / motsvarande | G156: Prefekt / med motsvarande beslutsrätt
C159: Signatur | E159: Signatur | G159: Signatur | U159: Underskrifter Mallen ska alltid skrivas under av prefekt, eller av den till vilken prefekten delegerat beslutsrätten, när det ansökta bidraget överstiger 100 000 kr.
C162: Namnförtydligande | E162: Namnförtydligande | G162: Namnförtydligande

Sheet Spec-indir-kostn-inst & -proj
B1: BIDRAGSFORKSNING - BILAGA TILL FULL KOSTNADSTÄCKNINGSKALKYL
B3: Inledning Denna flik preciserar de gemensamma / indirekta kostnaderna (INDI) för myndigheten Karolinska Institutet, men även för utförande institution samt för det specifika projektet. Fördelningen görs på följande nivåer: Ledning, Utbildning-forskning, Ekonomi-personal, Infrastruktur-service, Bibliotek, Nivåspecifikt övrigt. Siffrorna i mallen hämtas automatiskt om uppgifterna i bidragsforksningsfliken är korrekt ifyllda.
C12: GRUNDLÄGGANDE UPPGIFTER
C14: Institutions kod | D14: =Bidragsforskning!$D$28 -> C4 - Neuro
C15: Projektledare/-ansvarig | D15: =IF(Bidragsforskning!$D31="","",Bidragsforskning!$D31) -> 
C16: Projektnummer - UBW | D16: =IF(Bidragsforskning!$D32="","",Bidragsforskning!$D32) -> 
C17: Beskrivnig av projektet | D17: =IF(Bidragsforskning!$D33="","",Bidragsforskning!$D33) -> 
C19: Fördelningsbas kostnadsunderlag i tkr: | E19: =IF(Bidragsforskning!$D$28="","",VLOOKUP(LEFT(Bidragsforskning!$D$28,2),'INDI FO 2018'!K1:M27,3,0)) -> 133500
C22: INDIREKTA KOSTNADER KAROLINSKA INSTITUTET I TUSENTALS KR (KSEK)
E25: Universitetsgem kostnader - totalt | F25: Institutionsgem kostnader - totalt
C26: Ledning | E26: 87994 | F26: =SUMIF('INDI FO 2018'!$R$37:$R$46,'Spec-indir-kostn-inst & -proj'!$C26,'INDI FO 2018'!$T$37:$T$46)/-1000 -> 4644.562
C27: Utbildning-forskning | E27: 101591 | F27: =SUMIF('INDI FO 2018'!$R$37:$R$46,'Spec-indir-kostn-inst & -proj'!$C27,'INDI FO 2018'!$T$37:$T$46)/-1000 -> 156.91215
C28: Ekonomi-personal | E28: 75115 | F28: =SUMIF('INDI FO 2018'!$R$37:$R$46,'Spec-indir-kostn-inst & -proj'!$C28,'INDI FO 2018'!$T$37:$T$46)/-1000 -> 4795.50569
C29: Infrastruktur-service | E29: 113397 | F29: =SUMIF('INDI FO 2018'!$R$37:$R$46,'Spec-indir-kostn-inst & -proj'!$C29,'INDI FO 2018'!$T$37:$T$46)/-1000 -> 949.70946
C30: Bibliotek | E30: 114600 | F30: =SUMIF('INDI FO 2018'!$R$37:$R$46,'Spec-indir-kostn-inst & -proj'!$C30,'INDI FO 2018'!$T$37:$T$46)/-1000 -> 0
C31: Nivåspecifikt mm | E31: 10238 | F31: =SUMIF('INDI FO 2018'!$R$37:$R$46,'Spec-indir-kostn-inst & -proj'!$C31,'INDI FO 2018'!$T$37:$T$46)/-1000 -> 0
C32: Summa | E32: =SUM(E26:E31) -> 502935 | F32: =SUM(F26:F31) -> 10546.6893
E35: Inst andel av Universitetsgem | F35: Inst andel av Institutionsgem | G35: Totalt indirekta kostnader för Inst | H35: % andel av total INDI för Inst
E36: =IF(Bidragsforskning!$D$28="","",E43/E32) -> 0.03875451102 | F36: =IF(Bidragsforskning!$D$28="","",100%) -> 1
C37: Ledning | E37: =IF(E$36="","",E$36*E26) -> 3410.164443 | F37: =IF(Bidragsforskning!$D$28="","",F26*F$36) -> 4644.562 | G37: =IF(Bidragsforskning!$D$28="","",E37+F37) -> 8054.726443 | H37: =IF(Bidragsforskning!$D$28="","",(IF(G37=0,0,G37/E$19))) -> 0.06033502953
C38: Utbildning-forskning | E38: =IF(E$36="","",E$36*E27) -> 3937.109529 | F38: =IF(Bidragsforskning!$D$28="","",F27*F$36) -> 156.91215 | G38: =IF(Bidragsforskning!$D$28="","",E38+F38) -> 4094.021679 | H38: =IF(Bidragsforskning!$D$28="","",(IF(G38=0,0,G38/E$19))) -> 0.03066682906
C39: Ekonomi-personal | E39: 2911.045095 | F39: =IF(Bidragsforskning!$D$28="","",F28*F$36) -> 4795.50569 | G39: =IF(Bidragsforskning!$D$28="","",E39+F39) -> 7706.550785 | H39: =IF(Bidragsforskning!$D$28="","",(IF(G39=0,0,G39/E$19))) -> 0.05772697217
C40: Infrastruktur-service | E40: 4394.645286 | F40: =IF(Bidragsforskning!$D$28="","",F29*F$36) -> 949.70946 | G40: =IF(Bidragsforskning!$D$28="","",E40+F40) -> 5344.354746 | H40: =IF(Bidragsforskning!$D$28="","",(IF(G40=0,0,G40/E$19))) -> 0.04003261982
C41: Bibliotek | E41: 4441.266963 | F41: =IF(Bidragsforskning!$D$28="","",F30*F$36) -> 0 | G41: =IF(Bidragsforskning!$D$28="","",E41+F41) -> 4441.266963 | H41: =IF(Bidragsforskning!$D$28="","",(IF(G41=0,0,G41/E$19))) -> 0.03326791733
C42: Nivåspecifikt mm | E42: 396.7686838 | F42: =IF(Bidragsforskning!$D$28="","",F31*F$36) -> 0 | G42: =IF(Bidragsforskning!$D$28="","",E42+F42) -> 396.7686838 | H42: =IF(Bidragsforskning!$D$28="","",(IF(G42=0,0,G42/E$19))) -> 0.002972050066
C43: Summa | E43: =IF(Bidragsforskning!$D$28="","",VLOOKUP(LEFT(Bidragsforskning!$D$28,2),'INDI FO 2018'!K1:P27,4,0)) -> 19491 | F43: =IF(Bidragsforskning!$D$28="","",VLOOKUP(LEFT(Bidragsforskning!$D$28,2),'INDI FO 2018'!K1:R27,8,0)) -> 10546.5 | G43: =SUM(G37:G42) -> 30037.6893 | H43: 0
C45: Andel av total fördelningsbas | E45: =IF(Bidragsforskning!$D$28="","",E43/$E$19) -> 0.146 | F45: =IF(Bidragsforskning!$D$28="","",F43/$E$19) -> 0.079 | G45: =ROUND(SUM(E45:F45),4) -> 0.225 | H45: =IF(AND(ROUND(SUM(H37:H43),4)=G45,G45=(ROUND(VLOOKUP(LEFT(Bidragsforskning!D28,2),'INDI FO 2018'!A2:G27,7,0),4))),"VARIABEL CHECK - OK","CONTACT EA") -> VARIABEL CHECK - OK
C46: (Löner och drift; exklusive avskr, lokal och interna -kostnader)
C49: INDIREKTA KOSTNADER FÖR SPECIFIKT PROJEKT I HELA KR (SEK)
E52: =Bidragsforskning!H39 ->  | F52: =IFERROR(E52+1,"") ->  | G52: =IFERROR(F52+1,"") ->  | H52: =IFERROR(G52+1,"") ->  | I52: =IFERROR(H52+1,"") -> 
C53: Proj. andel av Universitetsgem
C54: Ledning | D54: =IF(Bidragsforskning!$D$28="",0,(E37/$E$19)/$G$45) -> 0.1135302353 | E54: =IF(Bidragsforskning!$D$28="",0,$D54*Bidragsforskning!H$132) -> 0 | F54: =IF(Bidragsforskning!$D$28="",0,$D54*Bidragsforskning!J$132) -> 0 | G54: =IF(Bidragsforskning!$D$28="",0,$D54*Bidragsforskning!L$132) -> 0 | H54: =IF(Bidragsforskning!$D$28="",0,$D54*Bidragsforskning!N$132) -> 0 | I54: =IF(Bidragsforskning!$D$28="",0,$D54*Bidragsforskning!P$132) -> 0
C55: Utbildning-forskning | D55: =IF(Bidragsforskning!$D$28="",0,(E38/$E$19)/$G$45) -> 0.1310731429 | E55: =IF(Bidragsforskning!$D$28="",0,$D55*Bidragsforskning!H$132) -> 0 | F55: =IF(Bidragsforskning!$D$28="",0,$D55*Bidragsforskning!J$132) -> 0 | G55: =IF(Bidragsforskning!$D$28="",0,$D55*Bidragsforskning!L$132) -> 0 | H55: =IF(Bidragsforskning!$D$28="",0,$D55*Bidragsforskning!N$132) -> 0 | I55: =IF(Bidragsforskning!$D$28="",0,$D55*Bidragsforskning!P$132) -> 0
C56: Ekonomi-personal | D56: =IF(Bidragsforskning!$D$28="",0,(E39/$E$19)/$G$45) -> 0.09691369439 | E56: =IF(Bidragsforskning!$D$28="",0,$D56*Bidragsforskning!H$132) -> 0 | F56: =IF(Bidragsforskning!$D$28="",0,$D56*Bidragsforskning!J$132) -> 0 | G56: =IF(Bidragsforskning!$D$28="",0,$D56*Bidragsforskning!L$132) -> 0 | H56: =IF(Bidragsforskning!$D$28="",0,$D56*Bidragsforskning!N$132) -> 0 | I56: =IF(Bidragsforskning!$D$28="",0,$D56*Bidragsforskning!P$132) -> 0
C57: Infrastruktur-service | D57: =IF(Bidragsforskning!$D$28="",0,(E40/$E$19)/$G$45) -> 0.1463052946 | E57: =IF(Bidragsforskning!$D$28="",0,$D57*Bidragsforskning!H$132) -> 0 | F57: =IF(Bidragsforskning!$D$28="",0,$D57*Bidragsforskning!J$132) -> 0 | G57: =IF(Bidragsforskning!$D$28="",0,$D57*Bidragsforskning!L$132) -> 0 | H57: =IF(Bidragsforskning!$D$28="",0,$D57*Bidragsforskning!N$132) -> 0 | I57: =IF(Bidragsforskning!$D$28="",0,$D57*Bidragsforskning!P$132) -> 0
C58: Bibliotek | D58: =IF(Bidragsforskning!$D$28="",0,(E41/$E$19)/$G$45) -> 0.1478574103 | E58: =IF(Bidragsforskning!$D$28="",0,$D58*Bidragsforskning!H$132) -> 0 | F58: =IF(Bidragsforskning!$D$28="",0,$D58*Bidragsforskning!J$132) -> 0 | G58: =IF(Bidragsforskning!$D$28="",0,$D58*Bidragsforskning!L$132) -> 0 | H58: =IF(Bidragsforskning!$D$28="",0,$D58*Bidragsforskning!N$132) -> 0 | I58: =IF(Bidragsforskning!$D$28="",0,$D58*Bidragsforskning!P$132) -> 0
C59: Nivåspecifikt mm | D59: =IF(Bidragsforskning!$D$28="",0,(E42/$E$19)/$G$45) -> 0.0132091114 | E59: =IF(Bidragsforskning!$D$28="",0,$D59*Bidragsforskning!H$132) -> 0 | F59: =IF(Bidragsforskning!$D$28="",0,$D59*Bidragsforskning!J$132) -> 0 | G59: =IF(Bidragsforskning!$D$28="",0,$D59*Bidragsforskning!L$132) -> 0 | H59: =IF(Bidragsforskning!$D$28="",0,$D59*Bidragsforskning!N$132) -> 0 | I59: =IF(Bidragsforskning!$D$28="",0,$D59*Bidragsforskning!P$132) -> 0
C60: Summa | D60: =IF(Bidragsforskning!$D$28="",0,(E43/$E$19)/$G$45) -> 0.6488888889 | E60: =SUM(E54:E59) -> 0 | F60: 0 | G60: 0 | H60: 0 | I60: =SUM(I54:I59) -> 0
C62: Proj. andel av Institutionsgem
C63: Ledning | D63: =IF(Bidragsforskning!$D$28="",0,(F37/$E$19)/$G$45) -> 0.1546254515 | E63: =IF(Bidragsforskning!$D$28="",0,$D63*Bidragsforskning!H$132) -> 0 | F63: =IF(Bidragsforskning!$D$28="",0,$D63*Bidragsforskning!J$132) -> 0 | G63: =IF(Bidragsforskning!$D$28="",0,$D63*Bidragsforskning!L$132) -> 0 | H63: =IF(Bidragsforskning!$D$28="",0,$D63*Bidragsforskning!N$132) -> 0 | I63: =IF(Bidragsforskning!$D$28="",0,$D63*Bidragsforskning!P$132) -> 0
C64: Utbildning-forskning | D64: =IF(Bidragsforskning!$D$28="",0,(F38/$E$19)/$G$45) -> 0.005223875156 | E64: =IF(Bidragsforskning!$D$28="",0,$D64*Bidragsforskning!H$132) -> 0 | F64: =IF(Bidragsforskning!$D$28="",0,$D64*Bidragsforskning!J$132) -> 0 | G64: =IF(Bidragsforskning!$D$28="",0,$D64*Bidragsforskning!L$132) -> 0 | H64: =IF(Bidragsforskning!$D$28="",0,$D64*Bidragsforskning!N$132) -> 0 | I64: =IF(Bidragsforskning!$D$28="",0,$D64*Bidragsforskning!P$132) -> 0
C65: Ekonomi-personal | D65: =IF(Bidragsforskning!$D$28="",0,(F39/$E$19)/$G$45) -> 0.1596506264 | E65: =IF(Bidragsforskning!$D$28="",0,$D65*Bidragsforskning!H$132) -> 0 | F65: =IF(Bidragsforskning!$D$28="",0,$D65*Bidragsforskning!J$132) -> 0 | G65: =IF(Bidragsforskning!$D$28="",0,$D65*Bidragsforskning!L$132) -> 0 | H65: =IF(Bidragsforskning!$D$28="",0,$D65*Bidragsforskning!N$132) -> 0 | I65: =IF(Bidragsforskning!$D$28="",0,$D65*Bidragsforskning!P$132) -> 0
C66: Infrastruktur-service | D66: =IF(Bidragsforskning!$D$28="",0,(F40/$E$19)/$G$45) -> 0.03161746017 | E66: =IF(Bidragsforskning!$D$28="",0,$D66*Bidragsforskning!H$132) -> 0 | F66: =IF(Bidragsforskning!$D$28="",0,$D66*Bidragsforskning!J$132) -> 0 | G66: =IF(Bidragsforskning!$D$28="",0,$D66*Bidragsforskning!L$132) -> 0 | H66: =IF(Bidragsforskning!$D$28="",0,$D66*Bidragsforskning!N$132) -> 0 | I66: =IF(Bidragsforskning!$D$28="",0,$D66*Bidragsforskning!P$132) -> 0
C67: Bibliotek | D67: =IF(Bidragsforskning!$D$28="",0,(F41/$E$19)/$G$45) -> 0 | E67: =IF(Bidragsforskning!$D$28="",0,$D67*Bidragsforskning!H$132) -> 0 | F67: =IF(Bidragsforskning!$D$28="",0,$D67*Bidragsforskning!J$132) -> 0 | G67: =IF(Bidragsforskning!$D$28="",0,$D67*Bidragsforskning!L$132) -> 0 | H67: =IF(Bidragsforskning!$D$28="",0,$D67*Bidragsforskning!N$132) -> 0 | I67: =IF(Bidragsforskning!$D$28="",0,$D67*Bidragsforskning!P$132) -> 0
C68: Nivåspecifikt mm | D68: =IF(Bidragsforskning!$D$28="",0,(F42/$E$19)/$G$45) -> 0 | E68: =IF(Bidragsforskning!$D$28="",0,$D68*Bidragsforskning!H$132) -> 0 | F68: =IF(Bidragsforskning!$D$28="",0,$D68*Bidragsforskning!J$132) -> 0 | G68: =IF(Bidragsforskning!$D$28="",0,$D68*Bidragsforskning!L$132) -> 0 | H68: =IF(Bidragsforskning!$D$28="",0,$D68*Bidragsforskning!N$132) -> 0 | I68: =IF(Bidragsforskning!$D$28="",0,$D68*Bidragsforskning!P$132) -> 0
C69: Summa | D69: =IF(Bidragsforskning!$D$28="",0,(F43/$E$19)/$G$45) -> 0.3511111111 | E69: =SUM(E63:E68) -> 0 | F69: 0 | G69: 0 | H69: 0 | I69: 0
C71: Proj. total indirekta kost
C72: Ledning | D72: =IF(Bidragsforskning!$D$28="",0,(G37/$E$19)/$G$45) -> 0.2681556868 | E72: =IF(Bidragsforskning!$D$28="",0,$D72*Bidragsforskning!H$132) -> 0 | F72: =IF(Bidragsforskning!$D$28="",0,$D72*Bidragsforskning!J$132) -> 0 | G72: =IF(Bidragsforskning!$D$28="",0,$D72*Bidragsforskning!L$132) -> 0 | H72: =IF(Bidragsforskning!$D$28="",0,$D72*Bidragsforskning!N$132) -> 0 | I72: =IF(Bidragsforskning!$D$28="",0,$D72*Bidragsforskning!P$132) -> 0
C73: Utbildning-forskning | D73: =IF(Bidragsforskning!$D$28="",0,(G38/$E$19)/$G$45) -> 0.136297018 | E73: =IF(Bidragsforskning!$D$28="",0,$D73*Bidragsforskning!H$132) -> 0 | F73: =IF(Bidragsforskning!$D$28="",0,$D73*Bidragsforskning!J$132) -> 0 | G73: =IF(Bidragsforskning!$D$28="",0,$D73*Bidragsforskning!L$132) -> 0 | H73: =IF(Bidragsforskning!$D$28="",0,$D73*Bidragsforskning!N$132) -> 0 | I73: =IF(Bidragsforskning!$D$28="",0,$D73*Bidragsforskning!P$132) -> 0
C74: Ekonomi-personal | D74: =IF(Bidragsforskning!$D$28="",0,(G39/$E$19)/$G$45) -> 0.2565643208 | E74: =IF(Bidragsforskning!$D$28="",0,$D74*Bidragsforskning!H$132) -> 0 | F74: =IF(Bidragsforskning!$D$28="",0,$D74*Bidragsforskning!J$132) -> 0 | G74: =IF(Bidragsforskning!$D$28="",0,$D74*Bidragsforskning!L$132) -> 0 | H74: =IF(Bidragsforskning!$D$28="",0,$D74*Bidragsforskning!N$132) -> 0 | I74: =IF(Bidragsforskning!$D$28="",0,$D74*Bidragsforskning!P$132) -> 0
C75: Infrastruktur-service | D75: =IF(Bidragsforskning!$D$28="",0,(G40/$E$19)/$G$45) -> 0.1779227548 | E75: =IF(Bidragsforskning!$D$28="",0,$D75*Bidragsforskning!H$132) -> 0 | F75: =IF(Bidragsforskning!$D$28="",0,$D75*Bidragsforskning!J$132) -> 0 | G75: =IF(Bidragsforskning!$D$28="",0,$D75*Bidragsforskning!L$132) -> 0 | H75: =IF(Bidragsforskning!$D$28="",0,$D75*Bidragsforskning!N$132) -> 0 | I75: =IF(Bidragsforskning!$D$28="",0,$D75*Bidragsforskning!P$132) -> 0
C76: Bibliotek | D76: =IF(Bidragsforskning!$D$28="",0,(G41/$E$19)/$G$45) -> 0.1478574103 | E76: =IF(Bidragsforskning!$D$28="",0,$D76*Bidragsforskning!H$132) -> 0 | F76: =IF(Bidragsforskning!$D$28="",0,$D76*Bidragsforskning!J$132) -> 0 | G76: =IF(Bidragsforskning!$D$28="",0,$D76*Bidragsforskning!L$132) -> 0 | H76: =IF(Bidragsforskning!$D$28="",0,$D76*Bidragsforskning!N$132) -> 0 | I76: =IF(Bidragsforskning!$D$28="",0,$D76*Bidragsforskning!P$132) -> 0
C77: Nivåspecifikt mm | D77: =IF(Bidragsforskning!$D$28="",0,(G42/$E$19)/$G$45) -> 0.0132091114 | E77: =IF(Bidragsforskning!$D$28="",0,$D77*Bidragsforskning!H$132) -> 0 | F77: =IF(Bidragsforskning!$D$28="",0,$D77*Bidragsforskning!J$132) -> 0 | G77: =IF(Bidragsforskning!$D$28="",0,$D77*Bidragsforskning!L$132) -> 0 | H77: =IF(Bidragsforskning!$D$28="",0,$D77*Bidragsforskning!N$132) -> 0 | I77: =IF(Bidragsforskning!$D$28="",0,$D77*Bidragsforskning!P$132) -> 0
C78: Summa | D78: =IF(Bidragsforskning!$D$28="",0,(G43/$E$19)/$G$45) -> 1.000006302 | E78: =SUM(E72:E77) -> 0 | F78: 0 | G78: 0 | H78: 0 | I78: 0

Sheet Uppföljning bidrag
B1: BIDRAGSFORSKNING - STÖD FÖR BUDGET TILL UBW
B3: Inledning Denna flik summerar kostnader och intäkter som fyllts in i kalkylfliken och återvisar dem i en budgetmodell som enkelt kan föras in i UBWs saldo-tabell för uppföljningsändamål. Posterna till olika konton hämtas beroende på vad som fyllts i under respektive rubrik i kalkylen. Nedan finns två alternativ som kan nyttjas för uppföljning i UBW. Det första som återfinns under rubiken TOTAL BUDGET summerar samtliga intäkter och kostnader för projektet till ett år, och det andra som återfinns under rubriken ÅRSFÖRDELAD BUDGET fördelarar intäkter och kostnader på respektive år. OBS! Kopiera endast gråa fält och klistra in direkt i UBW (Ctrl + C & Ctrl + V). Se gärna UBW-handbok på medarbetarportalen för ytterligare instruktioner om hur funktionen kan nyttjas.
C12: TOTAL BUDGET
C14: RR2 | D14: Bskrivning | E14: Konto | F14: Inst | G14: Proj | H14: Fin | I14: Anl | J14: Mpt | K14: Verks | L14: Text | M14: Per | N14: Budget (BB)
C15: 12 | D15: Intäkter av bidrag | E15: 35 | F15: =IF(Bidragsforskning!$D$28="","",LEFT(Bidragsforskning!$D$28,2)) -> C4 | G15: =Bidragsforskning!$D$32 -> 0 | L15: ="Budget totalt "&Bidragsforskning!$D$32&"" -> Budget totalt | M15: =Bidragsforskning!$D$30&"00" -> 00 | N15: =N26+N33+N40+N47+N54 -> 0
C16: 21 | D16: Personalkostnader | E16: 40 | F16: =IF(Bidragsforskning!$D$28="","",LEFT(Bidragsforskning!$D$28,2)) -> C4 | G16: =Bidragsforskning!$D$32 -> 0 | L16: ="Budget totalt "&Bidragsforskning!$D$32&"" -> Budget totalt | M16: =Bidragsforskning!$D$30&"00" -> 00 | N16: =N27+N34+N41+N48+N55 -> 0
C17: 211 | D17: Gemensamma kostnader (INDI) | E17: 499 | F17: =IF(Bidragsforskning!$D$28="","",LEFT(Bidragsforskning!$D$28,2)) -> C4 | G17: =Bidragsforskning!$D$32 -> 0 | L17: ="Budget totalt "&Bidragsforskning!$D$32&"" -> Budget totalt | M17: =Bidragsforskning!$D$30&"00" -> 00 | N17: 0
C18: 22 | D18: Lokalkostnader | E18: 50 | F18: =IF(Bidragsforskning!$D$28="","",LEFT(Bidragsforskning!$D$28,2)) -> C4 | G18: =Bidragsforskning!$D$32 -> 0 | L18: ="Budget totalt "&Bidragsforskning!$D$32&"" -> Budget totalt | M18: =Bidragsforskning!$D$30&"00" -> 00 | N18: 0
C19: 23 | D19: Övriga driftskostnader | E19: 52 | F19: =IF(Bidragsforskning!$D$28="","",LEFT(Bidragsforskning!$D$28,2)) -> C4 | G19: =Bidragsforskning!$D$32 -> 0 | L19: ="Budget totalt "&Bidragsforskning!$D$32&"" -> Budget totalt | M19: =Bidragsforskning!$D$30&"00" -> 00 | N19: 0
C20: 23 | D20: Interna kostnader | E20: 579 | F20: =IF(Bidragsforskning!$D$28="","",LEFT(Bidragsforskning!$D$28,2)) -> C4 | G20: =Bidragsforskning!$D$32 -> 0 | L20: ="Budget totalt "&Bidragsforskning!$D$32&"" -> Budget totalt | M20: =Bidragsforskning!$D$30&"00" -> 00 | N20: 0
C21: 24 | D21: Avskrivningar | E21: 69 | F21: =IF(Bidragsforskning!$D$28="","",LEFT(Bidragsforskning!$D$28,2)) -> C4 | G21: =Bidragsforskning!$D$32 -> 0 | L21: ="Budget totalt "&Bidragsforskning!$D$32&"" -> Budget totalt | M21: =Bidragsforskning!$D$30&"00" -> 00 | N21: 0
C23: ÅRSFÖRDELAD BUDGET
C25: RR2 | D25: Bskrivning | E25: Konto | F25: Inst | G25: Proj | H25: Fin | I25: Anl | J25: Mpt | K25: Verks | L25: Text | M25: Per | N25: Budget (BB)
C26: 12 | D26: Intäkter av bidrag | E26: 35 | F26: =IF(Bidragsforskning!$D$28="","",LEFT(Bidragsforskning!$D$28,2)) -> C4 | G26: =Bidragsforskning!$D$32 -> 0 | L26: ="Budget "&Bidragsforskning!$D$32&" "&Bidragsforskning!H$39 -> Budget | M26: =RIGHT(L26,4)&"00" -> et 00 | N26: =Bidragsforskning!H$146*-1 -> 0
C27: 21 | D27: Personalkostnader | E27: 40 | F27: =IF(Bidragsforskning!$D$28="","",LEFT(Bidragsforskning!$D$28,2)) -> C4 | G27: =Bidragsforskning!$D$32 -> 0 | L27: ="Budget "&Bidragsforskning!$D$32&" "&Bidragsforskning!H$39 -> Budget | M27: =RIGHT(L27,4)&"00" -> et 00 | N27: =Bidragsforskning!H$85 -> 0
C28: 211 | D28: Gemensamma kostnader (INDI) | E28: 499 | F28: =IF(Bidragsforskning!$D$28="","",LEFT(Bidragsforskning!$D$28,2)) -> C4 | G28: =Bidragsforskning!$D$32 -> 0 | L28: ="Budget "&Bidragsforskning!$D$32&" "&Bidragsforskning!H$39 -> Budget | M28: et 00 | N28: =Bidragsforskning!H$132 -> 0
C29: 22 | D29: Lokalkostnader | E29: 50 | F29: =IF(Bidragsforskning!$D$28="","",LEFT(Bidragsforskning!$D$28,2)) -> C4 | G29: =Bidragsforskning!$D$32 -> 0 | L29: ="Budget "&Bidragsforskning!$D$32&" "&Bidragsforskning!H$39 -> Budget | M29: et 00 | N29: =SUM(Bidragsforskning!I$112:I114) -> 0
C30: 23 | D30: Övriga driftskostnader | E30: 52 | F30: =IF(Bidragsforskning!$D$28="","",LEFT(Bidragsforskning!$D$28,2)) -> C4 | G30: =Bidragsforskning!$D$32 -> 0 | L30: ="Budget "&Bidragsforskning!$D$32&" "&Bidragsforskning!H$39 -> Budget | M30: et 00 | N30: =Bidragsforskning!H101 -> 0
C31: 23 | D31: Interna kostnader | E31: 579 | F31: =IF(Bidragsforskning!$D$28="","",LEFT(Bidragsforskning!$D$28,2)) -> C4 | G31: =Bidragsforskning!$D$32 -> 0 | L31: ="Budget "&Bidragsforskning!$D$32&" "&Bidragsforskning!H$39 -> Budget | M31: et 00 | N31: =SUM(Bidragsforskning!I$118:I120) -> 0
C32: 24 | D32: Avskrivningar | E32: 69 | F32: =IF(Bidragsforskning!$D$28="","",LEFT(Bidragsforskning!$D$28,2)) -> C4 | G32: =Bidragsforskning!$D$32 -> 0 | L32: ="Budget "&Bidragsforskning!$D$32&" "&Bidragsforskning!H$39 -> Budget | M32: et 00 | N32: =SUM(Bidragsforskning!I$107:I108) -> 0
C33: 12 | D33: Intäkter av bidrag | E33: 35 | F33: =IF(Bidragsforskning!$D$28="","",LEFT(Bidragsforskning!$D$28,2)) -> C4 | G33: =Bidragsforskning!$D$32 -> 0 | L33: ="Budget "&Bidragsforskning!$D$32&" "&Bidragsforskning!J$39 -> Budget | M33: =RIGHT(L33,4)&"00" -> et 00 | N33: =Bidragsforskning!J$146*-1 -> 0
C34: 21 | D34: Personalkostnader | E34: 40 | F34: =IF(Bidragsforskning!$D$28="","",LEFT(Bidragsforskning!$D$28,2)) -> C4 | G34: =Bidragsforskning!$D$32 -> 0 | L34: ="Budget "&Bidragsforskning!$D$32&" "&Bidragsforskning!J$39 -> Budget | M34: =RIGHT(L34,4)&"00" -> et 00 | N34: =Bidragsforskning!J$85 -> 0
C35: 211 | D35: Gemensamma kostnader (INDI) | E35: 499 | F35: =IF(Bidragsforskning!$D$28="","",LEFT(Bidragsforskning!$D$28,2)) -> C4 | G35: =Bidragsforskning!$D$32 -> 0 | L35: ="Budget "&Bidragsforskning!$D$32&" "&Bidragsforskning!J$39 -> Budget | M35: et 00 | N35: =Bidragsforskning!J$132 -> 0
C36: 22 | D36: Lokalkostnader | E36: 50 | F36: =IF(Bidragsforskning!$D$28="","",LEFT(Bidragsforskning!$D$28,2)) -> C4 | G36: =Bidragsforskning!$D$32 -> 0 | L36: ="Budget "&Bidragsforskning!$D$32&" "&Bidragsforskning!J$39 -> Budget | M36: et 00 | N36: =SUM(Bidragsforskning!K$112:K114) -> 0
C37: 23 | D37: Övriga driftskostnader | E37: 52 | F37: =IF(Bidragsforskning!$D$28="","",LEFT(Bidragsforskning!$D$28,2)) -> C4 | G37: =Bidragsforskning!$D$32 -> 0 | L37: ="Budget "&Bidragsforskning!$D$32&" "&Bidragsforskning!J$39 -> Budget | M37: et 00 | N37: =Bidragsforskning!J101 -> 0
C38: 23 | D38: Interna kostnader | E38: 579 | F38: =IF(Bidragsforskning!$D$28="","",LEFT(Bidragsforskning!$D$28,2)) -> C4 | G38: =Bidragsforskning!$D$32 -> 0 | L38: ="Budget "&Bidragsforskning!$D$32&" "&Bidragsforskning!J$39 -> Budget | M38: et 00 | N38: =SUM(Bidragsforskning!K$118:K120) -> 0
C39: 24 | D39: Avskrivningar | E39: 69 | F39: =IF(Bidragsforskning!$D$28="","",LEFT(Bidragsforskning!$D$28,2)) -> C4 | G39: =Bidragsforskning!$D$32 -> 0 | L39: ="Budget "&Bidragsforskning!$D$32&" "&Bidragsforskning!J$39 -> Budget | M39: et 00 | N39: =SUM(Bidragsforskning!K$107:K108) -> 0
C40: 12 | D40: Intäkter av bidrag | E40: 35 | F40: =IF(Bidragsforskning!$D$28="","",LEFT(Bidragsforskning!$D$28,2)) -> C4 | G40: =Bidragsforskning!$D$32 -> 0 | L40: ="Budget "&Bidragsforskning!$D$32&" "&Bidragsforskning!L$39 -> Budget | M40: =RIGHT(L40,4)&"00" -> et 00 | N40: =Bidragsforskning!L$146*-1 -> 0
C41: 21 | D41: Personalkostnader | E41: 40 | F41: =IF(Bidragsforskning!$D$28="","",LEFT(Bidragsforskning!$D$28,2)) -> C4 | G41: =Bidragsforskning!$D$32 -> 0 | L41: ="Budget "&Bidragsforskning!$D$32&" "&Bidragsforskning!L$39 -> Budget | M41: =RIGHT(L41,4)&"00" -> et 00 | N41: =Bidragsforskning!L$85 -> 0
C42: 211 | D42: Gemensamma kostnader (INDI) | E42: 499 | F42: =IF(Bidragsforskning!$D$28="","",LEFT(Bidragsforskning!$D$28,2)) -> C4 | G42: =Bidragsforskning!$D$32 -> 0 | L42: ="Budget "&Bidragsforskning!$D$32&" "&Bidragsforskning!L$39 -> Budget | M42: et 00 | N42: =Bidragsforskning!L$132 -> 0
C43: 22 | D43: Lokalkostnader | E43: 50 | F43: =IF(Bidragsforskning!$D$28="","",LEFT(Bidragsforskning!$D$28,2)) -> C4 | G43: =Bidragsforskning!$D$32 -> 0 | L43: ="Budget "&Bidragsforskning!$D$32&" "&Bidragsforskning!L$39 -> Budget | M43: et 00 | N43: =SUM(Bidragsforskning!M$112:M114) -> 0
C44: 23 | D44: Övriga driftskostnader | E44: 52 | F44: =IF(Bidragsforskning!$D$28="","",LEFT(Bidragsforskning!$D$28,2)) -> C4 | G44: =Bidragsforskning!$D$32 -> 0 | L44: ="Budget "&Bidragsforskning!$D$32&" "&Bidragsforskning!L$39 -> Budget | M44: et 00 | N44: =Bidragsforskning!L101 -> 0
C45: 23 | D45: Interna kostnader | E45: 579 | F45: =IF(Bidragsforskning!$D$28="","",LEFT(Bidragsforskning!$D$28,2)) -> C4 | G45: =Bidragsforskning!$D$32 -> 0 | L45: ="Budget "&Bidragsforskning!$D$32&" "&Bidragsforskning!L$39 -> Budget | M45: et 00 | N45: =SUM(Bidragsforskning!M$118:M120) -> 0
C46: 24 | D46: Avskrivningar | E46: 69 | F46: =IF(Bidragsforskning!$D$28="","",LEFT(Bidragsforskning!$D$28,2)) -> C4 | G46: =Bidragsforskning!$D$32 -> 0 | L46: ="Budget "&Bidragsforskning!$D$32&" "&Bidragsforskning!L$39 -> Budget | M46: et 00 | N46: =SUM(Bidragsforskning!M$107:M108) -> 0
C47: 12 | D47: Intäkter av bidrag | E47: 35 | F47: =IF(Bidragsforskning!$D$28="","",LEFT(Bidragsforskning!$D$28,2)) -> C4 | G47: =Bidragsforskning!$D$32 -> 0 | L47: ="Budget "&Bidragsforskning!$D$32&" "&Bidragsforskning!N$39 -> Budget | M47: =RIGHT(L47,4)&"00" -> et 00 | N47: =Bidragsforskning!N$146*-1 -> 0
C48: 21 | D48: Personalkostnader | E48: 40 | F48: =IF(Bidragsforskning!$D$28="","",LEFT(Bidragsforskning!$D$28,2)) -> C4 | G48: =Bidragsforskning!$D$32 -> 0 | L48: ="Budget "&Bidragsforskning!$D$32&" "&Bidragsforskning!N$39 -> Budget | M48: =RIGHT(L48,4)&"00" -> et 00 | N48: =Bidragsforskning!N$85 -> 0
C49: 211 | D49: Gemensamma kostnader (INDI) | E49: 499 | F49: =IF(Bidragsforskning!$D$28="","",LEFT(Bidragsforskning!$D$28,2)) -> C4 | G49: =Bidragsforskning!$D$32 -> 0 | L49: ="Budget "&Bidragsforskning!$D$32&" "&Bidragsforskning!N$39 -> Budget | M49: et 00 | N49: =Bidragsforskning!N$132 -> 0
C50: 22 | D50: Lokalkostnader | E50: 50 | F50: =IF(Bidragsforskning!$D$28="","",LEFT(Bidragsforskning!$D$28,2)) -> C4 | G50: =Bidragsforskning!$D$32 -> 0 | L50: ="Budget "&Bidragsforskning!$D$32&" "&Bidragsforskning!N$39 -> Budget | M50: et 00 | N50: =SUM(Bidragsforskning!O$112:O114) -> 0
C51: 23 | D51: Övriga driftskostnader | E51: 52 | F51: =IF(Bidragsforskning!$D$28="","",LEFT(Bidragsforskning!$D$28,2)) -> C4 | G51: =Bidragsforskning!$D$32 -> 0 | L51: ="Budget "&Bidragsforskning!$D$32&" "&Bidragsforskning!N$39 -> Budget | M51: et 00 | N51: =Bidragsforskning!N101 -> 0
C52: 23 | D52: Interna kostnader | E52: 579 | F52: =IF(Bidragsforskning!$D$28="","",LEFT(Bidragsforskning!$D$28,2)) -> C4 | G52: =Bidragsforskning!$D$32 -> 0 | L52: ="Budget "&Bidragsforskning!$D$32&" "&Bidragsforskning!N$39 -> Budget | M52: et 00 | N52: =SUM(Bidragsforskning!O$118:O120) -> 0
C53: 24 | D53: Avskrivningar | E53: 69 | F53: =IF(Bidragsforskning!$D$28="","",LEFT(Bidragsforskning!$D$28,2)) -> C4 | G53: =Bidragsforskning!$D$32 -> 0 | L53: ="Budget "&Bidragsforskning!$D$32&" "&Bidragsforskning!N$39 -> Budget | M53: et 00 | N53: =SUM(Bidragsforskning!O$107:O108) -> 0
C54: 12 | D54: Intäkter av bidrag | E54: 35 | F54: =IF(Bidragsforskning!$D$28="","",LEFT(Bidragsforskning!$D$28,2)) -> C4 | G54: =Bidragsforskning!$D$32 -> 0 | L54: ="Budget "&Bidragsforskning!$D$32&" "&Bidragsforskning!P$39 -> Budget | M54: et 00 | N54: =Bidragsforskning!P$146*-1 -> 0
C55: 21 | D55: Personalkostnader | E55: 40 | F55: =IF(Bidragsforskning!$D$28="","",LEFT(Bidragsforskning!$D$28,2)) -> C4 | G55: =Bidragsforskning!$D$32 -> 0 | L55: ="Budget "&Bidragsforskning!$D$32&" "&Bidragsforskning!P$39 -> Budget | M55: et 00 | N55: =Bidragsforskning!P$85 -> 0
C56: 211 | D56: Gemensamma kostnader (INDI) | E56: 499 | F56: =IF(Bidragsforskning!$D$28="","",LEFT(Bidragsforskning!$D$28,2)) -> C4 | G56: =Bidragsforskning!$D$32 -> 0 | L56: ="Budget "&Bidragsforskning!$D$32&" "&Bidragsforskning!P$39 -> Budget | M56: et 00 | N56: =Bidragsforskning!P$132 -> 0
C57: 22 | D57: Lokalkostnader | E57: 50 | F57: =IF(Bidragsforskning!$D$28="","",LEFT(Bidragsforskning!$D$28,2)) -> C4 | G57: =Bidragsforskning!$D$32 -> 0 | L57: ="Budget "&Bidragsforskning!$D$32&" "&Bidragsforskning!P$39 -> Budget | M57: et 00 | N57: =SUM(Bidragsforskning!Q$112:Q114) -> 0
C58: 23 | D58: Övriga driftskostnader | E58: 52 | F58: =IF(Bidragsforskning!$D$28="","",LEFT(Bidragsforskning!$D$28,2)) -> C4 | G58: =Bidragsforskning!$D$32 -> 0 | L58: ="Budget "&Bidragsforskning!$D$32&" "&Bidragsforskning!P$39 -> Budget | M58: et 00 | N58: =Bidragsforskning!P101 -> 0
C59: 23 | D59: Interna kostnader | E59: 579 | F59: =IF(Bidragsforskning!$D$28="","",LEFT(Bidragsforskning!$D$28,2)) -> C4 | G59: =Bidragsforskning!$D$32 -> 0 | L59: ="Budget "&Bidragsforskning!$D$32&" "&Bidragsforskning!P$39 -> Budget | M59: et 00 | N59: =SUM(Bidragsforskning!Q$118:Q120) -> 0
C60: 24 | D60: Avskrivningar | E60: 69 | F60: =IF(Bidragsforskning!$D$28="","",LEFT(Bidragsforskning!$D$28,2)) -> C4 | G60: =Bidragsforskning!$D$32 -> 0 | L60: ="Budget "&Bidragsforskning!$D$32&" "&Bidragsforskning!P$39 -> Budget | M60: et 00 | N60: =SUM(Bidragsforskning!Q$107:Q108) -> 0

Sheet INDI FO 2018 (hidden)
A1: Forskning/Forskarutbildning 2018 | K1: Obs kostnadsunderlag är hämtad från INDI budgeten
A2: Inst | B2: Namn | C2: =A2&" - "&B2 -> Inst - Namn | D2: Institution | E2: Fakultet | F2: Universitet | G2: Summa | M2: Kostnadsunderlag (summa kostnadsunderlag FO) | N2: Universitetsgemensam | O2: Univgem andel av total | P2: Fakultetsgemensam | Q2: Fackgem andel av total | R2: Insitutionsgemensam | S2: Summa | T2: Andel av total | U2: Uni | W2: Fak
A3: C1 | B3: MTC | C3: =A3&" - "&B3 -> C1 - MTC | D3: 0.0816 | F3: 0.146 | G3: =SUM(D3:F3) -> 0.2276 | H3: =E3+F3 -> 0.146 | K3: C1 | L3: C1 MTC | M3: 188200 | N3: =M3*F3 -> 27477.2 | O3: =N3/$N$28 -> 0.05518548064 | P3: 0 | Q3: =P3/$P$28 ->  | R3: =D3*M3 -> 15357.12 | S3: =SUM(N3:P3) -> 27477.25519 | T3: =S3/$S$28 -> 0.05518559147 | U3: =M3*0.146 -> 27477.2 | V3: =N3/M3 -> 0.146 | W3: =M3*0 -> 0 | X3: =P3/M3 -> 0
A4: C2 | B4: MBB | C4: C2 - MBB | D4: 0.0575 | F4: 0.146 | G4: =SUM(D4:F4) -> 0.2035 | H4: =E4+F4 -> 0.146 | K4: C2 | L4: C2 MBB | M4: 233300 | N4: =M4*F4 -> 34061.8 | O4: 0.06841005649 | P4: 0 | Q4: =P4/$P$28 ->  | R4: =D4*M4 -> 13414.75 | S4: 34061.86841 | T4: 0.06841019389 | U4: =M4*0.146 -> 34061.8 | V4: =N4/M4 -> 0.146 | W4: =M4*0 -> 0 | X4: 0
A5: C3 | B5: FyFa | C5: C3 - FyFa | D5: 0.079 | F5: 0.146 | G5: 0.225 | H5: =E5+F5 -> 0.146 | K5: C3 | L5: C3 Fysiologi & Farmakologi | M5: 111350 | N5: 16257.1 | O5: 0.03265092066 | P5: 0 | R5: 8796.65 | S5: 16257.13265 | T5: 0.03265098624 | U5: 16257.1 | V5: 0.146 | W5: 0 | X5: 0
A6: C4 | B6: Neuro | C6: C4 - Neuro | D6: 0.079 | F6: 0.146 | G6: 0.225 | H6: 0.146 | K6: C4 | L6: C4 Neurovetenskap | M6: 133500 | N6: 19491 | O6: 0.03914591745 | P6: 0 | R6: 10546.5 | S6: 19491.03915 | T6: 0.03914599608 | U6: 19491 | V6: 0.146 | W6: 0 | X6: 0
A7: C5 | B7: CMB | C7: C5 - CMB | D7: 0.0787 | F7: 0.146 | G7: 0.2247 | H7: 0.146 | K7: C5 | L7: C5 CMB | M7: 141950 | N7: 20724.7 | O7: 0.04162369275 | P7: 0 | R7: 11171.465 | S7: 20724.74162 | T7: 0.04162377635 | U7: 20724.7 | V7: 0.146 | W7: 0 | X7: 0
A8: C6 | B8: IMM | C8: C6 - IMM | D8: 0.0958 | F8: 0.146 | G8: 0.2418 | H8: 0.146 | K8: C6 | L8: C6 IMM | M8: 151000 | N8: 22046 | O8: 0.04427740476 | P8: 0 | R8: 14465.8 | S8: 22046.04428 | T8: 0.04427749369 | U8: 22046 | V8: 0.146 | W8: 0 | X8: 0
A9: C7 | B9: LIME | C9: C7 - LIME | D9: 0.1325 | F9: 0.146 | G9: 0.2785 | H9: 0.146 | K9: C7 | L9: C7 LIME | M9: 66000 | N9: 9636 | O9: 0.01935303784 | P9: 0 | R9: 8745 | S9: 9636.019353 | T9: 0.01935307671 | U9: 9636 | V9: 0.146 | W9: 0 | X9: 0
A10: C8 | B10: MEB | C10: C8 - MEB | D10: 0.1152 | F10: 0.146 | G10: 0.2612 | H10: 0.146 | K10: C8 | L10: C8 MEB | M10: 178150 | N10: 26009.9 | O10: 0.05223854078 | P10: 0 | R10: 20522.88 | S10: 26009.95224 | T10: 0.0522386457 | U10: 26009.9 | V10: 0.146 | W10: 0 | X10: 0
A11: CC | B11: KM | C11: CC - KM | D11: 0.104 | F11: 0.146 | G11: 0.25 | H11: 0.146 | K11: CC | L11: CC Komparativ Medicin | M11: 91800 | N11: 13402.8 | O11: 0.02691831627 | P11: 0 | R11: 9547.2 | S11: 13402.82692 | T11: 0.02691837033 | U11: 13402.8 | V11: 0.146 | W11: 0 | X11: 0
A12: CD | B12: ETV | C12: CD - ETV | D12: 0.161 | F12: 0.146 | G12: 0.307 | H12: 0.146 | K12: CD | L12: CD SweTox | M12: 37861 | N12: 5527.706 | O12: 0.01110189948 | P12: 0 | R12: 6095.621 | S12: 5527.717102 | T12: 0.01110192178 | U12: 5527.706 | V12: 0.146 | W12: 0 | X12: 0
A13: D1 | B13: KIDS | C13: D1 - KIDS | D13: 0.075 | F13: 0.146 | G13: 0.221 | H13: 0.146 | K13: D1 | L13: D1 KI vid Danderyds sjukhus | M13: 41300 | N13: 6029.8 | O13: 0.01211031004 | P13: 0 | R13: 3097.5 | S13: 6029.81211 | T13: 0.01211033437 | U13: 6029.8 | V13: 0.146 | W13: 0 | X13: 0
A14: H1 | B14: NVS | C14: H1 - NVS | D14: 0.069 | F14: 0.146 | G14: 0.215 | H14: 0.146 | K14: H1 | L14: H1 Nerurobio, Vårdvet & Samhälle | M14: 192448 | N14: 28097.408 | O14: 0.05643111253 | P14: 0 | R14: 13278.912 | S14: 28097.46443 | T14: 0.05643122586 | U14: 28097.408 | V14: 0.146 | W14: 0 | X14: 0
A15: H2 | B15: BioNut | C15: H2 - BioNut | D15: 0.0909 | F15: 0.146 | G15: 0.2369 | H15: 0.146 | K15: H2 | L15: H2 Biovetenskaper & Näringslära | M15: 143000 | N15: 20878 | O15: 0.04193158199 | P15: 0 | R15: 12998.7 | S15: 20878.04193 | T15: 0.04193166621 | U15: 20878 | V15: 0.146 | W15: 0 | X15: 0
A16: H5 | B16: LABMED | C16: H5 - LABMED | D16: 0.059 | F16: 0.146 | G16: 0.205 | H16: 0.146 | K16: H5 | L16: H5 Laboratoriemedicin | M16: 160600 | N16: 23447.6 | O16: 0.04709239208 | P16: 0 | R16: 9475.4 | S16: 23447.64709 | T16: 0.04709248666 | U16: 23447.6 | V16: 0.146 | W16: 0 | X16: 0
A17: H7 | B17: MedH | C17: H7 - MedH | D17: 0.0589 | F17: 0.146 | G17: 0.2049 | H17: 0.146 | K17: H7 | L17: H7 Medicin - Huddinge | M17: 234446 | N17: 34229.116 | O17: 0.06874609561 | P17: 0 | R17: 13808.8694 | S17: 34229.18475 | T17: 0.06874623368 | U17: 34229.116 | V17: 0.146 | W17: 0 | X17: 0
A18: H9 | B18: CLINTEC | C18: H9 - CLINTEC | D18: 0.1016 | F18: 0.146 | G18: 0.2476 | H18: 0.146 | K18: H9 | L18: H9 Clintec | M18: 93200 | N18: 13607.2 | O18: 0.02732883526 | P18: 0 | R18: 9469.12 | S18: 13607.22733 | T18: 0.02732889014 | U18: 13607.2 | V18: 0.146 | W18: 0 | X18: 0
A19: K1 | B19: MMK | C19: K1 - MMK | D19: 0.084 | F19: 0.146 | G19: 0.23 | H19: 0.146 | K19: K1 | L19: K1 Molykylär medicin & Kirurgi | M19: 146800 | N19: 21432.8 | O19: 0.04304584781 | P19: 0 | R19: 12331.2 | S19: 21432.84305 | T19: 0.04304593426 | U19: 21432.8 | V19: 0.146 | W19: 0 | X19: 0
A20: K2 | B20: MedS | C20: K2 - MedS | D20: 0.084 | F20: 0.146 | G20: 0.23 | H20: 0.146 | K20: K2 | L20: K2 Medicin - Solna | M20: 332937 | N20: 48608.802 | O20: 0.0976263994 | P20: 0 | R20: 27966.708 | S20: 48608.89963 | T20: 0.09762659547 | U20: 48608.802 | V20: 0.146 | W20: 0 | X20: 0
A21: K6 | B21: KBH | C21: K6 - KBH | D21: 0.074 | F21: 0.146 | G21: 0.22 | H21: 0.146 | K21: K6 | L21: K6 Kvinnors & barns hälsa | M21: 136000 | N21: 19856 | O21: 0.03987898707 | P21: 0 | R21: 10064 | S21: 19856.03988 | T21: 0.03987906716 | U21: 19856 | V21: 0.146 | W21: 0 | X21: 0
A22: K7 | B22: OnkPat | C22: K7 - OnkPat | D22: 0.093 | F22: 0.146 | G22: 0.239 | H22: 0.146 | K22: K7 | L22: K7 Onkologi & Patologi | M22: 169347.0133 | N22: 24724.66394 | O22: 0.04965725994 | P22: 0 | R22: 15749.27223 | S22: 24724.71359 | T22: 0.04965735968 | U22: 24724.66394 | V22: 0.146 | W22: 0 | X22: 0
A23: K8 | B23: CNS | C23: K8 - CNS | D23: 0.069 | F23: 0.146 | G23: 0.215 | H23: 0.146 | K23: K8 | L23: K8 Klinisk neurovetenskap | M23: 270000 | N23: 39420 | O23: 0.07917151845 | P23: 0 | R23: 18630 | S23: 39420.07917 | T23: 0.07917167746 | U23: 39420 | V23: 0.146 | W23: 0 | X23: 0
A24: K9 | B24: PHS | C24: K9 - PHS | D24: 0.104 | F24: 0.146 | G24: 0.25 | H24: 0.146 | K24: K9 | L24: K9 Folkhälsovetenskap | M24: 96000 | N24: 14016 | O24: 0.02814987323 | P24: 0 | R24: 9984 | S24: 14016.02815 | T24: 0.02814992976 | U24: 14016 | V24: 0.146 | W24: 0 | X24: 0
A25: OF | B25: DENTMED | C25: OF - DENTMED | D25: 0.174 | F25: 0.146 | G25: 0.32 | H25: 0.146 | K25: OF | L25: OF Odontologi | M25: 28753 | N25: 4197.938 | O25: 0.008431180259 | P25: 0 | R25: 5003.022 | S25: 4197.946431 | T25: 0.008431197192 | U25: 4197.938 | V25: 0.146 | W25: 0 | X25: 0
A26: OV | B26: Uni.tandv. | C26: OV - Uni.tandv. | D26: 0.1656 | F26: 0.0498 | G26: 0.2154 | H26: 0.0498 | K26: OV | L26: OV Universitetstandvården | M26: 28306.7 | N26: 1409.67366 | O26: 0.002831202541 | P26: 0 | R26: 4687.58952 | S26: 1409.676491 | T26: 0.002831208227 | U26: =M26*0.0498 -> 1409.67366 | V26: 0.0498 | W26: 0 | X26: =P26/O26 -> 0 | Y26: egen procent på OV
A27: S1 | B27: SÖS | C27: S1 - SÖS | D27: 0.104 | F27: 0.146 | G27: 0.25 | H27: 0.146 | K27: S1 | L27: S1 KI vid Södersjukhuset | M27: 22720 | N27: 3317.12 | O27: 0.006662136663 | P27: 0 | R27: 2362.88 | S27: 3317.126662 | T27: 0.006662150044 | U27: 3317.12 | V27: 0.146 | W27: 0 | X27: =P27/M27 -> 0
A28: UF | B28: Externt | C28: UF - Externt | G28: 0.39 | M28: =SUM(M3:M27) -> 3428968.713 | N28: =SUM(N3:N27) -> 497906.3276 | P28: =SUM(P3:P27) -> 0 | S28: 497906.3276
A29: UF | B29: Internt | C29: UF - Internt | G29: 0.16
A35: All INDI budget | L35: Arbetsgivaransvar | P35: Beräkning för att få fördelningen på respektive nivå för inst
L36: Hämtad från slutliga INDI budget | P36: Forskningsrelaterade projekt | Q36: Grp1 | R36: HuvudGrp | S36: HuvudGrpEng
A37: Konto | B37: Inst | C37: Proj | D37: Fin | E37: Anl | F37: Mpt | G37: Verks | H37: Text | I37: Per | J37: Budget (BB) | L37: Inst | M37: arbetsgivaransvar i KSEK | N37: arbetsgivaransvar i SEK | P37: 81008002 | Q37: Ledning | R37: Ledning | S37: Management | T37: =SUMIFS($J$38:$J$1397,$A$38:$A$1397,"39498",$C$38:$C$1397,LEFT(Bidragsforskning!$D$28,2)&'INDI FO 2018'!$P37)+SUMIF($L$38:$L$62,LEFT(Bidragsforskning!$D$28,2),'INDI FO 2018'!$N$38:$N$62) -> -4644562 | U37: Egen kalkylering på denna rad med arbetsgivaransvar
A38: 39498 | B38: C1 | C38: C181008001 | G38: 18 | H38: 2019 Budget | I38: 201900 | J38: -207494.09 | L38: C1 | M38: 2450 | N38: =M38*-1000 -> -2450000 | P38: 81008012 | Q38: Ledning/Biomedicum FFU | R38: Ledning | S38: Management | T38: =SUMIFS($J$38:$J$1397,$A$38:$A$1397,"39498",$C$38:$C$1397,LEFT(Bidragsforskning!$D$28,2)&'INDI FO 2018'!$P38) -> 0
A39: 40 | B39: C1 | C39: C181008001 | G39: 18 | H39: 2019 Budget | I39: 201900 | J39: 159894.09 | L39: C2 | M39: 2450 | N39: -2450000 | P39: 82008002 | Q39: Utb eller forskningsadmin | R39: Utbildning-forskning | S39: Education-research | T39: =SUMIFS($J$38:$J$1397,$A$38:$A$1397,"39498",$C$38:$C$1397,LEFT(Bidragsforskning!$D$28,2)&'INDI FO 2018'!$P39) -> -156912.15
A40: 49 | B40: C1 | C40: C181008001 | G40: 18 | H40: 2019 Budget | I40: 201900 | J40: 25000 | L40: C3 | M40: 1380 | N40: -1380000 | P40: 82008012 | Q40: FFU Administration Biomedicum | R40: Utbildning-forskning | S40: Education-research | T40: =SUMIFS($J$38:$J$1397,$A$38:$A$1397,"39498",$C$38:$C$1397,LEFT(Bidragsforskning!$D$28,2)&'INDI FO 2018'!$P40) -> 0
A41: 50 | B41: C1 | C41: C181008001 | G41: 18 | H41: 2019 Budget | I41: 201900 | J41: 17500 | L41: C4 | M41: 1500 | N41: -1500000 | P41: 83008002 | Q41: Ekonomi-personal | R41: Ekonomi-personal | S41: Finances-staff | T41: =SUMIFS($J$38:$J$1397,$A$38:$A$1397,"39498",$C$38:$C$1397,LEFT(Bidragsforskning!$D$28,2)&'INDI FO 2018'!$P41) -> -4795505.69
A42: 57 | B42: C1 | C42: C181008001 | G42: 18 | H42: 2019 Budget | I42: 201900 | J42: 5000 | L42: C5 | M42: 1967.5 | N42: -1967500 | P42: 83008012 | Q42: Ekonomi/Personal Biomedicum FFU | R42: Ekonomi-personal | S42: Finances-staff | T42: =SUMIFS($J$38:$J$1397,$A$38:$A$1397,"39498",$C$38:$C$1397,LEFT(Bidragsforskning!$D$28,2)&'INDI FO 2018'!$P42) -> 0
A43: 69 | B43: C1 | C43: C181008001 | G43: 18 | H43: 2019 Budget | I43: 201900 | J43: 100 | L43: C6 | M43: 0 | N43: 0 | P43: 84008002 | Q43: Infrastruktur | R43: Infrastruktur-service | S43: Infrastructure-service | T43: =SUMIFS($J$38:$J$1397,$A$38:$A$1397,"39498",$C$38:$C$1397,LEFT(Bidragsforskning!$D$28,2)&'INDI FO 2018'!$P43) -> -33000
A44: 39498 | B44: C1 | C44: C181008002 | G44: 28 | H44: 2019 Budget | I44: 201900 | J44: -3848796.47 | L44: C7 | M44: 483 | N44: -483000 | P44: 84008012 | Q44: Infrastruktur/Biomedicum GU | R44: Infrastruktur-service | S44: Infrastructure-service | T44: =SUMIFS($J$38:$J$1397,$A$38:$A$1397,"39498",$C$38:$C$1397,LEFT(Bidragsforskning!$D$28,2)&'INDI FO 2018'!$P44) -> -916709.46
A45: 40 | B45: C1 | C45: C181008002 | G45: 28 | H45: 2019 Budget | I45: 201900 | J45: 2944396.47 | L45: C8 | M45: 400 | N45: -400000 | R45: Bibliotek | S45: Library | T45: =SUMIFS($J$38:$J$1397,$A$38:$A$1397,"39498",$C$38:$C$1397,LEFT(Bidragsforskning!$D$28,2)&'INDI FO 2018'!$P45) -> 0
A46: 49 | B46: C1 | C46: C181008002 | G46: 28 | H46: 2019 Budget | I46: 201900 | J46: 475000 | L46: CC | M46: 0 | N46: 0 | R46: Nivåspecifikt mm | S46: Level specific, etc. | T46: =SUMIFS($J$38:$J$1397,$A$38:$A$1397,"39498",$C$38:$C$1397,LEFT(Bidragsforskning!$D$28,2)&'INDI FO 2018'!$P46) -> 0
A47: 50 | B47: C1 | C47: C181008002 | G47: 28 | H47: 2019 Budget | I47: 201900 | J47: 332500 | L47: CD | M47: 0 | N47: 0
A48: 57 | B48: C1 | C48: C181008002 | G48: 28 | H48: 2019 Budget | I48: 201900 | J48: 95000 | L48: D1 | M48: 300 | N48: -300000
A49: 69 | B49: C1 | C49: C181008002 | G49: 28 | H49: 2019 Budget | I49: 201900 | J49: 1900 | L49: H1 | M49: 1820 | N49: -1820000
A50: 39498 | B50: C1 | C50: C182008001 | G50: 18 | H50: 2019 Budget | I50: 201900 | J50: -387166.48 | L50: H2 | M50: 800 | N50: -800000
A51: 40 | B51: C1 | C51: C182008001 | G51: 18 | H51: 2019 Budget | I51: 201900 | J51: 372916.48 | L51: H5 | M51: 0 | N51: 0
A52: 49 | B52: C1 | C52: C182008001 | G52: 18 | H52: 2019 Budget | I52: 201900 | J52: 500 | L52: H7 | M52: 0 | N52: 0
A53: 50 | B53: C1 | C53: C182008001 | G53: 18 | H53: 2019 Budget | I53: 201900 | J53: 12500 | L53: H9 | M53: 90 | N53: -90000
A54: 57 | B54: C1 | C54: C182008001 | G54: 18 | H54: 2019 Budget | I54: 201900 | J54: 1000 | L54: K1 | M54: 1460 | N54: -1460000
A55: 69 | B55: C1 | C55: C182008001 | G55: 18 | H55: 2019 Budget | I55: 201900 | J55: 250 | L55: K2 | M55: 3329.37 | N55: -3329370
A56: 39498 | B56: C1 | C56: C182008002 | G56: 28 | H56: 2019 Budget | I56: 201900 | J56: -844072.86 | L56: K6 | M56: 0 | N56: 0
A57: 40 | B57: C1 | C57: C182008002 | G57: 28 | H57: 2019 Budget | I57: 201900 | J57: 573322.86 | L57: K7 | M57: 1425 | N57: -1425000
A58: 49 | B58: C1 | C58: C182008002 | G58: 28 | H58: 2019 Budget | I58: 201900 | J58: 9500 | L58: K8 | M58: 2675 | N58: -2675000
A59: 50 | B59: C1 | C59: C182008002 | G59: 28 | H59: 2019 Budget | I59: 201900 | J59: 237500 | L59: K9 | M59: 270 | N59: -270000
A60: 57 | B60: C1 | C60: C182008002 | G60: 28 | H60: 2019 Budget | I60: 201900 | J60: 19000 | L60: OF | M60: 0 | N60: 0
A61: 69 | B61: C1 | C61: C182008002 | G61: 28 | H61: 2019 Budget | I61: 201900 | J61: 4750 | L61: OV | M61: 0 | N61: 0
A62: 39498 | B62: C1 | C62: C183008001 | G62: 18 | H62: 2019 Budget | I62: 201900 | J62: -437470.23 | L62: S1 | M62: 0 | N62: 0
A63: 40 | B63: C1 | C63: C183008001 | G63: 18 | H63: 2019 Budget | I63: 201900 | J63: 296220.23
A64: 49 | B64: C1 | C64: C183008001 | G64: 18 | H64: 2019 Budget | I64: 201900 | J64: 3500
A65: 50 | B65: C1 | C65: C183008001 | G65: 18 | H65: 2019 Budget | I65: 201900 | J65: 17500
A66: 57 | B66: C1 | C66: C183008001 | G66: 18 | H66: 2019 Budget | I66: 201900 | J66: 120000
A67: 69 | B67: C1 | C67: C183008001 | G67: 18 | H67: 2019 Budget | I67: 201900 | J67: 250
A68: 39498 | B68: C1 | C68: C183008002 | G68: 28 | H68: 2019 Budget | I68: 201900 | J68: -8133808.23
A69: 40 | B69: C1 | C69: C183008002 | G69: 28 | H69: 2019 Budget | I69: 201900 | J69: 5450058.23
A70: 49 | B70: C1 | C70: C183008002 | G70: 28 | H70: 2019 Budget | I70: 201900 | J70: 66500
A71: 50 | B71: C1 | C71: C183008002 | G71: 28 | H71: 2019 Budget | I71: 201900 | J71: 332500
A72: 57 | B72: C1 | C72: C183008002 | G72: 28 | H72: 2019 Budget | I72: 201900 | J72: 2280000
A73: 69 | B73: C1 | C73: C183008002 | G73: 28 | H73: 2019 Budget | I73: 201900 | J73: 4750
A74: 39498 | B74: C1 | C74: C184008012 | G74: 28 | H74: 2019 Budget | I74: 201900 | J74: -82339.2
A75: 40 | B75: C1 | C75: C184008012 | G75: 28 | H75: 2019 Budget | I75: 201900 | J75: 82339.2
A76: 39498 | B76: C2 | C76: C281008001 | G76: 18 | H76: 2019 Budget | I76: 201900 | J76: -175255.8
A77: 40 | B77: C2 | C77: C281008001 | G77: 18 | H77: 2019 Budget | I77: 201900 | J77: 167255.8
A78: 49 | B78: C2 | C78: C281008001 | G78: 18 | H78: 2019 Budget | I78: 201900 | J78: 5000
A79: 50 | B79: C2 | C79: C281008001 | G79: 18 | H79: 2019 Budget | I79: 201900 | J79: 3000
A80: 39498 | B80: C2 | C80: C281008002 | G80: 28 | H80: 2019 Budget | I80: 201900 | J80: -2665020.01
A81: 40 | B81: C2 | C81: C281008002 | G81: 28 | H81: 2019 Budget | I81: 201900 | J81: 2503020.01
A82: 49 | B82: C2 | C82: C281008002 | G82: 28 | H82: 2019 Budget | I82: 201900 | J82: 50000
A83: 50 | B83: C2 | C83: C281008002 | G83: 28 | H83: 2019 Budget | I83: 201900 | J83: 38000
A84: 57 | B84: C2 | C84: C281008002 | G84: 28 | H84: 2019 Budget | I84: 201900 | J84: 74000
A85: 39498 | B85: C2 | C85: C282008001 | G85: 18 | H85: 2019 Budget | I85: 201900 | J85: -381763.46
A86: 40 | B86: C2 | C86: C282008001 | G86: 18 | H86: 2019 Budget | I86: 201900 | J86: 367763.46
A87: 69 | B87: C2 | C87: C282008001 | G87: 18 | H87: 2019 Budget | I87: 201900 | J87: 14000
A88: 39498 | B88: C2 | C88: C282008002 | G88: 28 | H88: 2019 Budget | I88: 201900 | J88: -114117.56
A89: 40 | B89: C2 | C89: C282008002 | G89: 28 | H89: 2019 Budget | I89: 201900 | J89: 114117.56
A90: 39498 | B90: C2 | C90: C283008001 | G90: 18 | H90: 2019 Budget | I90: 201900 | J90: -222314.86
A91: 40 | B91: C2 | C91: C283008001 | G91: 18 | H91: 2019 Budget | I91: 201900 | J91: 153314.86
A92: 49 | B92: C2 | C92: C283008001 | G92: 18 | H92: 2019 Budget | I92: 201900 | J92: 3000
A93: 50 | B93: C2 | C93: C283008001 | G93: 18 | H93: 2019 Budget | I93: 201900 | J93: 26000
A94: 57 | B94: C2 | C94: C283008001 | G94: 18 | H94: 2019 Budget | I94: 201900 | J94: 40000
A95: 39498 | B95: C2 | C95: C283008002 | G95: 28 | H95: 2019 Budget | I95: 201900 | J95: -6295511.26
A96: 40 | B96: C2 | C96: C283008002 | G96: 28 | H96: 2019 Budget | I96: 201900 | J96: 4098511.26
A97: 49 | B97: C2 | C97: C283008002 | G97: 28 | H97: 2019 Budget | I97: 201900 | J97: 47000
A98: 50 | B98: C2 | C98: C283008002 | G98: 28 | H98: 2019 Budget | I98: 201900 | J98: 619000
A99: 57 | B99: C2 | C99: C283008002 | G99: 28 | H99: 2019 Budget | I99: 201900 | J99: 1531000
A100: 39498 | B100: C2 | C100: C284008001 | G100: 18 | H100: 2019 Budget | I100: 201900 | J100: -93406.65
A101: 40 | B101: C2 | C101: C284008001 | G101: 18 | H101: 2019 Budget | I101: 201900 | J101: 18406.65
A102: 57 | B102: C2 | C102: C284008001 | G102: 18 | H102: 2019 Budget | I102: 201900 | J102: 75000
A103: 39498 | B103: C2 | C103: C284008002 | G103: 28 | H103: 2019 Budget | I103: 201900 | J103: -578659.88
A104: 40 | B104: C2 | C104: C284008002 | G104: 28 | H104: 2019 Budget | I104: 201900 | J104: 165659.88
A105: 57 | B105: C2 | C105: C284008002 | G105: 28 | H105: 2019 Budget | I105: 201900 | J105: 413000
A106: 39498 | B106: C2 | C106: C284008011 | G106: 18 | H106: 2019 Budget | I106: 201900 | J106: -29979.51
A107: 40 | B107: C2 | C107: C284008011 | G107: 18 | H107: 2019 Budget | I107: 201900 | J107: 9979.51
A108: 57 | B108: C2 | C108: C284008011 | G108: 18 | H108: 2019 Budget | I108: 201900 | J108: 20000
A109: 39498 | B109: C2 | C109: C284008012 | G109: 28 | H109: 2019 Budget | I109: 201900 | J109: -1322610.71
A110: 40 | B110: C2 | C110: C284008012 | G110: 28 | H110: 2019 Budget | I110: 201900 | J110: 189610.71
A111: 49 | B111: C2 | C111: C284008012 | G111: 28 | H111: 2019 Budget | I111: 201900 | J111: 13000
A112: 57 | B112: C2 | C112: C284008012 | G112: 28 | H112: 2019 Budget | I112: 201900 | J112: 1020000
A113: 69 | B113: C2 | C113: C284008012 | G113: 28 | H113: 2019 Budget | I113: 201900 | J113: 100000
A114: 39498 | B114: C3 | C114: C381008001 | G114: 18 | H114: 2019 Budget | I114: 201900 | J114: -686716.48
A115: 40 | B115: C3 | C115: C381008001 | G115: 18 | H115: 2019 Budget | I115: 201900 | J115: 586716.48
A116: 49 | B116: C3 | C116: C381008001 | G116: 18 | H116: 2019 Budget | I116: 201900 | J116: 50000
A117: 57 | B117: C3 | C117: C381008001 | G117: 18 | H117: 2019 Budget | I117: 201900 | J117: 50000
A118: 39498 | B118: C3 | C118: C381008002 | G118: 28 | H118: 2019 Budget | I118: 201900 | J118: -2658500
A119: 40 | B119: C3 | C119: C381008002 | G119: 28 | H119: 2019 Budget | I119: 201900 | J119: 2188500
A120: 49 | B120: C3 | C120: C381008002 | G120: 28 | H120: 2019 Budget | I120: 201900 | J120: 200000
A121: 50 | B121: C3 | C121: C381008002 | G121: 28 | H121: 2019 Budget | I121: 201900 | J121: 120000
A122: 57 | B122: C3 | C122: C381008002 | G122: 28 | H122: 2019 Budget | I122: 201900 | J122: 150000
A123: 39498 | B123: C3 | C123: C382008001 | G123: 18 | H123: 2019 Budget | I123: 201900 | J123: -753321.6
A124: 40 | B124: C3 | C124: C382008001 | G124: 18 | H124: 2019 Budget | I124: 201900 | J124: 638321.6
A125: 49 | B125: C3 | C125: C382008001 | G125: 18 | H125: 2019 Budget | I125: 201900 | J125: 50000
A126: 57 | B126: C3 | C126: C382008001 | G126: 18 | H126: 2019 Budget | I126: 201900 | J126: 65000
A127: 39498 | B127: C3 | C127: C382008002 | G127: 28 | H127: 2019 Budget | I127: 201900 | J127: -380200
A128: 40 | B128: C3 | C128: C382008002 | G128: 28 | H128: 2019 Budget | I128: 201900 | J128: 170200
A129: 49 | B129: C3 | C129: C382008002 | G129: 28 | H129: 2019 Budget | I129: 201900 | J129: 40000
A130: 50 | B130: C3 | C130: C382008002 | G130: 28 | H130: 2019 Budget | I130: 201900 | J130: 120000
A131: 57 | B131: C3 | C131: C382008002 | G131: 28 | H131: 2019 Budget | I131: 201900 | J131: 50000
A132: 39498 | B132: C3 | C132: C383008001 | G132: 18 | H132: 2019 Budget | I132: 201900 | J132: -562000
A133: 40 | B133: C3 | C133: C383008001 | G133: 18 | H133: 2019 Budget | I133: 201900 | J133: 545000
A134: 49 | B134: C3 | C134: C383008001 | G134: 18 | H134: 2019 Budget | I134: 201900 | J134: 17000
A135: 39498 | B135: C3 | C135: C383008002 | G135: 28 | H135: 2019 Budget | I135: 201900 | J135: -3643990
A136: 40 | B136: C3 | C136: C383008002 | G136: 28 | H136: 2019 Budget | I136: 201900 | J136: 2293990
A137: 49 | B137: C3 | C137: C383008002 | G137: 28 | H137: 2019 Budget | I137: 201900 | J137: 150000
A138: 50 | B138: C3 | C138: C383008002 | G138: 28 | H138: 2019 Budget | I138: 201900 | J138: 200000
A139: 57 | B139: C3 | C139: C383008002 | G139: 28 | H139: 2019 Budget | I139: 201900 | J139: 1000000
A140: 39498 | B140: C3 | C140: C384008001 | G140: 18 | H140: 2019 Budget | I140: 201900 | J140: -100000
A141: 57 | B141: C3 | C141: C384008001 | G141: 18 | H141: 2019 Budget | I141: 201900 | J141: 100000
A142: 39498 | B142: C3 | C142: C384008002 | G142: 28 | H142: 2019 Budget | I142: 201900 | J142: -734400
A143: 40 | B143: C3 | C143: C384008002 | G143: 28 | H143: 2019 Budget | I143: 201900 | J143: 134400
A144: 57 | B144: C3 | C144: C384008002 | G144: 28 | H144: 2019 Budget | I144: 201900 | J144: 600000
A145: 39498 | B145: C4 | C145: C481008001 | G145: 18 | H145: 2019 Budget | I145: 201900 | J145: -438595.81
A146: 40 | B146: C4 | C146: C481008001 | G146: 18 | H146: 2019 Budget | I146: 201900 | J146: 424595.81
A147: 49 | B147: C4 | C147: C481008001 | G147: 18 | H147: 2019 Budget | I147: 201900 | J147: 6000
A148: 50 | B148: C4 | C148: C481008001 | G148: 18 | H148: 2019 Budget | I148: 201900 | J148: 8000
A149: 39498 | B149: C4 | C149: C481008002 | G149: 28 | H149: 2019 Budget | I149: 201900 | J149: -3144562
A150: 40 | B150: C4 | C150: C481008002 | G150: 28 | H150: 2019 Budget | I150: 201900 | J150: 2624562
A151: 49 | B151: C4 | C151: C481008002 | G151: 28 | H151: 2019 Budget | I151: 201900 | J151: 54000
A152: 50 | B152: C4 | C152: C481008002 | G152: 28 | H152: 2019 Budget | I152: 201900 | J152: 66000
A153: 57 | B153: C4 | C153: C481008002 | G153: 28 | H153: 2019 Budget | I153: 201900 | J153: 400000
A154: 39498 | B154: C4 | C154: C482008001 | G154: 18 | H154: 2019 Budget | I154: 201900 | J154: -693097.68
A155: 40 | B155: C4 | C155: C482008001 | G155: 18 | H155: 2019 Budget | I155: 201900 | J155: 613097.68
A156: 49 | B156: C4 | C156: C482008001 | G156: 18 | H156: 2019 Budget | I156: 201900 | J156: 10000
A157: 50 | B157: C4 | C157: C482008001 | G157: 18 | H157: 2019 Budget | I157: 201900 | J157: 50000
A158: 57 | B158: C4 | C158: C482008001 | G158: 18 | H158: 2019 Budget | I158: 201900 | J158: 20000
A159: 39498 | B159: C4 | C159: C482008002 | G159: 28 | H159: 2019 Budget | I159: 201900 | J159: -156912.15
A160: 40 | B160: C4 | C160: C482008002 | G160: 28 | H160: 2019 Budget | I160: 201900 | J160: 126912.15
A161: 49 | B161: C4 | C161: C482008002 | G161: 28 | H161: 2019 Budget | I161: 201900 | J161: 10000
A162: 57 | B162: C4 | C162: C482008002 | G162: 28 | H162: 2019 Budget | I162: 201900 | J162: 20000
A163: 39498 | B163: C4 | C163: C483008001 | G163: 18 | H163: 2019 Budget | I163: 201900 | J163: -505671.97
A164: 40 | B164: C4 | C164: C483008001 | G164: 18 | H164: 2019 Budget | I164: 201900 | J164: 367671.97
A165: 49 | B165: C4 | C165: C483008001 | G165: 18 | H165: 2019 Budget | I165: 201900 | J165: 10000
A166: 50 | B166: C4 | C166: C483008001 | G166: 18 | H166: 2019 Budget | I166: 201900 | J166: 45000
A167: 57 | B167: C4 | C167: C483008001 | G167: 18 | H167: 2019 Budget | I167: 201900 | J167: 83000
A168: 39498 | B168: C4 | C168: C483008002 | G168: 28 | H168: 2019 Budget | I168: 201900 | J168: -4795505.69
A169: 40 | B169: C4 | C169: C483008002 | G169: 28 | H169: 2019 Budget | I169: 201900 | J169: 2562505.69
A170: 49 | B170: C4 | C170: C483008002 | G170: 28 | H170: 2019 Budget | I170: 201900 | J170: 190000
A171: 50 | B171: C4 | C171: C483008002 | G171: 28 | H171: 2019 Budget | I171: 201900 | J171: 405000
A172: 57 | B172: C4 | C172: C483008002 | G172: 28 | H172: 2019 Budget | I172: 201900 | J172: 1638000
A173: 39498 | B173: C4 | C173: C484008002 | G173: 28 | H173: 2019 Budget | I173: 201900 | J173: -33000
A174: 57 | B174: C4 | C174: C484008002 | G174: 28 | H174: 2019 Budget | I174: 201900 | J174: 33000
A175: 39498 | B175: C4 | C175: C484008012 | G175: 28 | H175: 2019 Budget | I175: 201900 | J175: -916709.46
A176: 40 | B176: C4 | C176: C484008012 | G176: 28 | H176: 2019 Budget | I176: 201900 | J176: 216709.46
A177: 49 | B177: C4 | C177: C484008012 | G177: 28 | H177: 2019 Budget | I177: 201900 | J177: 100000
A178: 50 | B178: C4 | C178: C484008012 | G178: 28 | H178: 2019 Budget | I178: 201900 | J178: 50000
A179: 57 | B179: C4 | C179: C484008012 | G179: 28 | H179: 2019 Budget | I179: 201900 | J179: 550000
A180: 39498 | B180: C5 | C180: C581008001 | G180: 18 | H180: 2019 Budget | I180: 201900 | J180: -55500
A181: 40 | B181: C5 | C181: C581008001 | G181: 18 | H181: 2019 Budget | I181: 201900 | J181: 55500
A182: 39498 | B182: C5 | C182: C581008002 | G182: 28 | H182: 2019 Budget | I182: 201900 | J182: -1748500
A183: 40 | B183: C5 | C183: C581008002 | G183: 28 | H183: 2019 Budget | I183: 201900 | J183: 1748500
A184: 39498 | B184: C5 | C184: C582008001 | G184: 18 | H184: 2019 Budget | I184: 201900 | J184: -147200
A185: 40 | B185: C5 | C185: C582008001 | G185: 18 | H185: 2019 Budget | I185: 201900 | J185: 147200
A186: 39498 | B186: C5 | C186: C582008002 | G186: 28 | H186: 2019 Budget | I186: 201900 | J186: -859550
A187: 40 | B187: C5 | C187: C582008002 | G187: 28 | H187: 2019 Budget | I187: 201900 | J187: 859550
A188: 39498 | B188: C5 | C188: C583008001 | G188: 18 | H188: 2019 Budget | I188: 201900 | J188: -122850
A189: 40 | B189: C5 | C189: C583008001 | G189: 18 | H189: 2019 Budget | I189: 201900 | J189: 122850
A190: 39498 | B190: C5 | C190: C583008002 | G190: 28 | H190: 2019 Budget | I190: 201900 | J190: -5993650
A191: 40 | B191: C5 | C191: C583008002 | G191: 28 | H191: 2019 Budget | I191: 201900 | J191: 4093650
A192: 49 | B192: C5 | C192: C583008002 | G192: 28 | H192: 2019 Budget | I192: 201900 | J192: 250000
A193: 50 | B193: C5 | C193: C583008002 | G193: 28 | H193: 2019 Budget | I193: 201900 | J193: 550000
A194: 57 | B194: C5 | C194: C583008002 | G194: 28 | H194: 2019 Budget | I194: 201900 | J194: 1100000
A195: 39498 | B195: C5 | C195: C584008001 | G195: 18 | H195: 2019 Budget | I195: 201900 | J195: -26750
A196: 40 | B196: C5 | C196: C584008001 | G196: 18 | H196: 2019 Budget | I196: 201900 | J196: 26750
A197: 39498 | B197: C5 | C197: C584008002 | G197: 28 | H197: 2019 Budget | I197: 201900 | J197: -361500
A198: 40 | B198: C5 | C198: C584008002 | G198: 28 | H198: 2019 Budget | I198: 201900 | J198: 361500
A199: 39498 | B199: C5 | C199: C584008011 | G199: 18 | H199: 2019 Budget | I199: 201900 | J199: -20000
A200: 40 | B200: C5 | C200: C584008011 | G200: 18 | H200: 2019 Budget | I200: 201900 | J200: 20000
A201: 39498 | B201: C5 | C201: C584008012 | G201: 28 | H201: 2019 Budget | I201: 201900 | J201: -247000
A202: 40 | B202: C5 | C202: C584008012 | G202: 28 | H202: 2019 Budget | I202: 201900 | J202: 247000
A203: 39498 | B203: C6 | C203: C681008001 | G203: 18 | H203: 2019 Budget | I203: 201900 | J203: -175656.96
A204: 40 | B204: C6 | C204: C681008001 | G204: 18 | H204: 2019 Budget | I204: 201900 | J204: 175656.96
A205: 39498 | B205: C6 | C205: C681008002 | G205: 28 | H205: 2019 Budget | I205: 201900 | J205: -4354714.88
... 629 more rows
